{"text_format":"1","workbook":"xlsx","n_sheets":8,"sheets":["1a. LISEZ-MOI (débutez ici)","1b. Informations de base","2. Détermination de la portée","3. Données","4. Exemples","5. Calculs","6. Résumé","Automation Reference"],"not_rendered":{"charts":1,"images":0,"macros":1,"external_links":0,"defined_names":12,"comments":0,"pivot_tables":0},"unopened":[],"bounds":{"document_bytes":16777216,"sheet_cells":100000,"rows_first":2000,"rows_last":500,"rows_between":2000,"halvings":0,"cell_chars":16384,"cell_head_chars":4096},"cells_cut":0,"cells_raw":0,"read":"whole","date_system":"1900"}

{"sheet":"1a. LISEZ-MOI (débutez ici)","index":0,"n_rows":28,"n_cols":3,"rows_kept":28,"cut":false,"hidden":false,"merged":[[3,1,3,6]]}
[]
[null,"Objet"]
[]
[null,"***Veuillez lire l’intégralité de cette feuille (1a), puis passez à la feuille suivante (1b).***\n\nCette pièce jointe, No I.11 - Estimation des réductions de gaz à effet de serre, est destinée à être utilisée par les demandeurs du volet 1 : Préconstruction et du volet 2 : Prêt à être mis en chantier du Fonds pour l’infrastructure des minéraux critiques (FIMC), et sera utilisée dans le cadre du programme pour l’évaluation de l’impact prévu de l’infrastructure proposée sur les émissions de gaz à effet de serre (GES) provenant des activités d’exploitation des ressources de minéraux critiques.\n\nCe modèle assure l’utilisation d’une méthodologie et d’une approche uniformes pour la quantification de la réduction ou du remplacement des émissions de GES pour tous les types de projets.\n\nCe modèle est aligné sur les spécifications générales de la norme CSA ISO 14064-2:20 Gaz à effet de serre - partie 2 (CSA ISO 14064-2:20), y compris les exigences et les processus normalisés pour la quantification, la surveillance et la déclaration des GES à l’échelle des projets. Veuillez noter que l’utilisation de ce modèle ne garantit pas le respect de toutes les exigences de la norme CSA ISO 14064-2:20 et que ce modèle ne peut PAS être utilisé pour répondre aux exigences d’autres programmes et/ou marchés du carbone.\n\nVeuillez remplir tous les champs en surbrillance et porter attention aux unités. Les champs qui ne sont pas mis en surbrillance ne doivent PAS être modifiés."]
[]
[null,"Légende :"]
[]
[null,"Champ OBLIGATOIRE"]
[null,"Champ FACULTATIF"]
[]
[null,"Principes fondamentaux :"]
[]
[null,"Exhaustivité","Inclure toutes les émissions de GES pertinentes et leurs réductions ou remplacements. Inclure toute information pertinente pour remplir les critères et les procédures."]
[null,"Cohérence","Permettre des comparaisons significatives de l’information relative aux GES."]
[null,"Précision","Réduire les biais et les incertitudes dans la mesure du possible."]
[null,"Transparence","Divulguer de l’information suffisante et appropriée sur les GES pour permettre aux utilisateurs prévus de prendre des décisions en étant raisonnablement confiants."]
[null,"Approche prudente","Adopter des hypothèses, des valeurs et des procédures prudentes pour s’assurer que les réductions des émissions de GES ou les améliorations de l’élimination ne sont pas surestimées."]
[]
[]
[null,"Définitions pertinentes"]
[]
[null,"Term","Definition"]
[null,"Gaz à effet de serre (GES)","Constituant gazeux de l’atmosphère, tant naturel qu’anthropique, qui absorbe et émet des rayonnements à des longueurs d’onde spécifiques dans le spectre du rayonnement infrarouge émis par la surface de la Terre, par l’atmosphère elle-même et par les nuages.\n\nREMARQUE : Les GES comprennent notamment le dioxyde de carbone (CO2), le méthane (CH4), l’oxyde nitreux (N2O), les hydrofluorocarbures (HFC), les perfluorocarbures (PFC) et l’hexafluorure de soufre (SF6)."]
[null,"Émission de GES","Masse totale d’un ou de plusieurs GES rejetés dans l’atmosphère au cours d’une période donnée."]
[null,"Réduction des GES","Diminution calculée (delta) dans les émissions de GES entre un scénario de référence et le projet."]
[null,"Remplacement des GES","Différence calculée (delta) dans les émissions de GES entre un scénario de référence hypothétique (scénario de remplacement le plus probable) et le projet."]
[null,"Scénario de référence","Situation de référence comprenant les événements ou les conditions les plus susceptibles de persister ou de se produire en l’absence d’un projet proposé. Un scénario de référence peut également être une situation de référence hypothétique représentant au mieux les conditions les plus susceptibles de se produire en l’absence d’un projet proposé. Un scénario de référence déterminé à l’aide d’une approche propre au projet représente ce qui se produirait en l’absence du projet, alors qu’un programme de GES peut prescrire une autre approche pour déterminer le scénario de référence, telle qu’une norme de rendement."]
[null,"Équivalent en dioxyde de carbone (éq CO2)","Unité permettant de comparer le forçage radiatif d’un GES à celui du dioxyde de carbone.\n\nREMARQUE : L’équivalent en dioxyde de carbone est calculé en multipliant la masse d’un GES donné par son potentiel de réchauffement planétaire."]

{"sheet":"1b. Informations de base","index":1,"n_rows":67,"n_cols":8,"rows_kept":67,"cut":false,"hidden":false,"merged":[[10,1,10,2],[11,1,11,2],[45,1,45,2],[50,1,50,2],[48,1,48,2],[47,1,47,3],[30,1,30,2],[39,1,39,2],[3,1,3,4],[20,1,20,4],[32,1,32,4],[41,1,41,4],[36,1,36,2],[28,1,28,2],[29,1,29,2],[37,1,37,2],[38,1,38,2],[16,1,16,2],[17,1,17,2],[26,1,26,2],[27,1,27,2],[18,1,18,2],[15,1,15,2],[9,1,9,2],[29,4,29,7],[53,2,53,3],[65,4,65,7],[52,1,52,4],[49,1,49,3],[46,1,46,2],[56,1,56,4],[57,1,57,4],[58,2,58,3]]}
[]
[null,"Fonctionnement du modèle"]
[]
[null,"Cette feuille permet de recueillir de l’information de base sur votre projet énergétique pour le volet 1 : Préconstruction et le volet 2 : Prêt à être mis en chantier du Fonds pour l’infrastructure des minéraux critiques (FIMC). \n\nCe classeur permettra d’estimer les réductions et/ou les remplacements de GES annuels moyens de votre projet énergétique pour les technologies/types de projet suivants, en fonction de l’information fournie par le demandeur : raccordement au réseau (transport et distribution), production d’énergie renouvelable (solaire PV et éolienne terrestre) et/ou projets de stockage d’énergie. Les résultats figureront dans le tableau de révision présenté au bas de cette feuille. Les résultats seront également utilisés pour remplir la feuille 6. La méthodologie de l’estimation est également présentée ci-dessous. Il incombe au demandeur de vérifier le tableau de révision et de modifier les cellules en surbrillance de la feuille 6, au besoin.\n\nSi le projet inclut d’autres technologies (c’est-à-dire, la production d’hydroélectricité ou de biomasse, etc.), des renseignements plus détaillés sont nécessaires pour estimer les remplacements et/ou les réductions de GES du projet. Veuillez remplir les feuilles 2, 5 et 6. Vos réponses aux questions ci-dessous permettront également d’obtenir ce résultat à la ligne 21.   Pour obtenir plus d’instructions, veuillez envoyer un courriel au cmif-fimc@nrcan-rncan.gc.ca ou consulter la feuille 4 pour des exemples.\n\nVeuillez vous assurer que vos données sont exprimées dans les bonnes unités pour chaque champ."]
[]
[null,"Questions relatives à l’information de base sur le projet"]
[]
[null,"Calendrier et lieu du projet"]
[]
[null,"Année civile prévue ou connue au cours de laquelle le projet est mis en service et réalise dans les faits des réductions ou des remplacements des émissions (p. ex., 2027) :"]
[null,"Durée de vie prévue de la technologie, du produit ou du service financé (années) (p. ex., 10) :"]
[null,"Province ou territoire dans lequel le projet est situé :"]
[]
[null,"Technologies"]
[]
[null,"Un nouveau raccordement au réseau (ligne de transport ou de distribution) est-il prévu dans le cadre du projet pour répondre à des besoins qui seraient autrement satisfaits par d’autres sources d’énergie (p. ex., diesel, gaz naturel)?"]
[null,"Le projet inclut-il de nouveaux actifs de production d’énergie renouvelable (p. ex., panneaux solaires, turbines éoliennes) ?"]
[null,"Le projet inclut-il de nouveaux actifs de stockage d’énergie (p. ex., système de stockage d’énergie par batterie (SSEB)) ?"]
[null,"Le projet inclut-il d’autres technologies énergétiques qui ont un impact sur les remplacements ou les réductions de GES?"]
[]
[null,{"$f":"IF(OR(D10=\"\",D11=\"\",D12=\"\",D16=\"\",D17=\"\",D18=\"\",D19=\"\"),\"Veuillez remplir les champs ci-dessus. Autrement, des renseignements plus détaillés sur l’impact de votre projet sur les GES sont nécessaires. Veuillez remplir les feuilles 2, 5 et 6.\",IF(AND(D16=\"Non\",D17=\"No\",D18=\"Non\"),\"D’après l’information ci-dessus, des renseignements plus détaillés sur l’impact de votre projet sur les GES sont nécessaires. Veuillez passer aux feuilles 2, 5 et 6. Ne pas remplir les champs ci-dessous.\",IF(D19=\"Oui\",\"D’après l’information ci-dessus, des renseignements plus détaillés sur l’impact de votre projet sur les GES sont nécessaires. Veuillez remplir les feuilles 2, 5 et 6. Ne pas remplir les champs ci-dessous.\",\"Veuillez remplir les champs ci-dessous, le cas échéant.\")))","v":"Veuillez remplir les champs ci-dessus. Autrement, des renseignements plus détaillés sur l’impact de votre projet sur les GES sont nécessaires. Veuillez remplir les feuilles 2, 5 et 6."}]
[]
[null,"Information sur le projet énergétique"]
[]
[null,"Projets de raccordement au réseau"]
[]
[null,"Puissance nominale prévue (MW/MVA) :"]
[null,"Tension prévue (kV) :"]
[null,"Distance prévue (km) :"]
[null,"Demande énergétique annuelle des projets miniers futurs et existants qui seraient desservis par l’infrastructure (MWh)* :\n\n*Inclure la somme de la demande annuelle d’électricité prévue ou connue de tous les projets miniers qui seraient desservis par le projet d’infrastructure. "]
[null,"Cette demande énergétique serait-elle autrement satisfaite par la production au diesel (facteur d’émission : mazout léger - industriel)?"]
[]
[null,{"$f":"IF(D31=\"Oui\",\"Veuillez remplir les champs ci-dessous, le cas échéant.\",IF(D31=\"Non\",\"D’après l’information ci-dessus, des renseignements plus détaillés sur l’impact de votre projet sur les GES sont nécessaires. Veuillez passer aux feuilles 2, 5 et 6. Ne pas remplir les champs ci-dessous.\",\"Veuillez remplir les champs ci-dessus. Autrement, des renseignements plus détaillés sur l’impact de votre projet sur les GES sont nécessaires. Veuillez remplir les feuilles 2, 5 et 6.\"))","v":"Veuillez remplir les champs ci-dessus. Autrement, des renseignements plus détaillés sur l’impact de votre projet sur les GES sont nécessaires. Veuillez remplir les feuilles 2, 5 et 6."}]
[]
[null,"Projets de production"]
[]
[null,"Indiquer le type de technologie de production :"]
[null,"Indiquer la capacité énergétique de la nouvelle infrastructure de production d’électricité (MW) :"]
[null,"Indiquer la production annuelle d’énergie prévue (rendement énergétique P50) de la nouvelle infrastructure de production d’électricité (MWh) :\n\nLe rendement énergétique P50 est une mesure statistique utilisée dans l’industrie des énergies renouvelables pour estimer la production d’énergie prévue d’un projet, tel qu’un parc solaire ou éolien. Pour les projets du volet 1, utiliser la meilleure estimation disponible."]
[null,"Cette production d’énergie remplacerait-elle l’électricité provenant du réseau provincial ou l’énergie produite au diesel (facteur d’émission : mazout léger - industriel)? \n\nRemarque : Si vous sélectionnez le réseau provincial, ce calcul suppose que la nouvelle production d’électricité remplacera un volume équivalent de production au gaz naturel comme ressource marginale."]
[]
[null,{"$f":"IF(OR(D37=\"\",D38=\"\",D39=\"\",D40=\"\"),\"Veuillez remplir les champs ci-dessus. Autrement, des renseignements plus détaillés sur l’impact de votre projet sur les GES sont nécessaires. Veuillez remplir les feuilles 2, 5 et 6.\",IF(D40=\"Autre\",\"D’après l’information ci-dessus, des renseignements plus détaillés sur l’impact de votre projet sur les GES sont nécessaires. Veuillez remplir les feuilles 2, 5 et 6. Ne pas remplir les champs ci-dessous.\", \"Veuillez saisir l’information demandée ci-dessous.\"))","v":"Veuillez remplir les champs ci-dessus. Autrement, des renseignements plus détaillés sur l’impact de votre projet sur les GES sont nécessaires. Veuillez remplir les feuilles 2, 5 et 6."}]
[]
[null,"Projets de stockage"]
[]
[null,"Puissance nominale (MW) :"]
[null,"Capacité énergétique (MWh) :"]
[null,"Avant de poursuivre, veuillez noter que, parmi les cas d’utilisation courante suivants du stockage d’énergie, seule l’énergie écrêtée est prise en compte dans cette feuille :\n\n1) Arbitrage énergétique. La batterie est chargée pendant les périodes creuses (par l’intermédiaire du réseau provincial ou territorial) et déchargée pendant les périodes de pointe (permettant de remplacer les GES issus du gaz naturel et/ou du diesel, en fonction du contexte spécifique de la mine).\n\n2) À l’arrière du compteur. Les unités de stockage d’énergie sont raccordées à l’arrière du compteur. Les injections d’électricité dans le réseau sont possibles avec des incitatifs adéquats; cependant, la fonction principale de l’unité de stockage est de fournir de la valeur à l’arrière compteur, comme la réduction des pointes ou l’électricité de secours. \n\n3) Énergie écrêtée. Les unités de stockage d’énergie peuvent être couplées à un actif de production d’énergie renouvelable dans le but de capter l’énergie écrêtée ou perdue."]
[null,"Sélectionner le cas d’utilisation qui décrit le mieux la manière dont le système de stockage sera utilisé :"]
[null,{"$f":"IF(OR(D49=\"N/A\",D49=\"Énergie écrêtée\"),\"Veuillez remplir les champs ci-dessous, le cas échéant.\",\"Des renseignements plus détaillés sur l’impact de votre projet sur les GES sont nécessaires. Veuillez remplir les feuilles 2, 5 et 6.\")","v":"Des renseignements plus détaillés sur l’impact de votre projet sur les GES sont nécessaires. Veuillez remplir les feuilles 2, 5 et 6."}]
[null,"Production annuelle d’électricité grâce à l’ajout du stockage (MWh) (pour les projets d’énergie écrêtée) :"]
[]
[null,"Veuillez examiner le tableau ci-dessous et la feuille 6 (6. Résumé), et modifier les cellules en surbrillance au besoin. \n\nSi le tableau ci-dessous ne reflète pas correctement les remplacements de GES, veuillez en expliquer les raisons dans le champ ci-dessous et remplir les feuilles 2, 5 et 6."]
[null,"Le cas échéant, raisons pour lesquelles votre projet n’est pas correctement décrit dans le tableau ci-dessous :"]
[]
[null,"Tableau de révision"]
[null,"Veuillez examiner le tableau ci-dessous et la feuille 6 (6. Résumé), et modifier les cellules en surbrillance au besoin. \n\nSi le tableau ci-dessous ne reflète pas correctement les remplacements de GES, veuillez en expliquer les raisons dans le champ ci-dessous et remplir les feuilles 2, 5 et 6."]
[null,"Méthodologie :\nRemplacement annuel net des émissions = Émissions de référence - Émissions du projet\nOù :\nÉmissions de référence = ∑ (Énergie × Facteur d’émission de référence)\nÉmissions du projet = ∑ (Énergie × Facteur d’émission du projet)\n\nN.B. : Pour les projets dont la base de référence implique la combustion de diesel, cette méthodologie suppose que 0,4 litre de diesel est consommé pour chaque kWh produit."]
[null,"Le cas échéant, raisons pour lesquelles votre projet n’est pas correctement décrit dans le tableau ci-dessous :"]
[]
[null,null,"Facteur d’émission (FE) du projet (téq CO2/MWh)","Facteur d’émission (FE) de référence (téq CO2/MWh)","Énergie (MWh)","Émissions (annuelles) du projet (téq CO2)","Émissions de référence (annuelles) (téq CO2)","Remplacement annuel net des émissions (téq CO2)"]
[null,"Interconnexion",{"$f":"IF(D16=\"Oui\",AVERAGE(IF(D10+D11-1<=2050,INDEX('3. Données'!$C$32:$AB$44,MATCH(D12,'3. Données'!$B$32:$B$44,0),MATCH(TEXT(D10,\"0\"),'3. Données'!$C$31:$AB$31,0)):INDEX('3. Données'!$C$32:$AB$44,MATCH(D12,'3. Données'!$B$32:$B$44,0),MATCH(TEXT(D10+D11-1,\"0\"),'3. Données'!$C$31:$AB$31,0))),\nINDEX('3. Données'!$C$32:$AB$44,MATCH(D12,'3. Données'!$B$32:$B$44,0),MATCH(TEXT(D10,\"0\"),'3. Données'!$C$31:$AB$31,0)):INDEX('3. Données'!$C$32:$AB$44,MATCH(D12,'3. Données'!$B$32:$B$44,0),MATCH(\"2050\",'3. Données'!$C$31:$AB$31,0))+(D10+D11-2051)*INDEX('3. Données'!$C$32:$AB$44,MATCH(D12,'3. Données'!$B$32:$B$44,0),MATCH(\"2050\",'3. Données'!$C$31:$AB$31,0))),\"0.00\")","v":"0.00"},{"$f":"IF(D31=\"Oui\",('3. Données'!C96)*0.0004,0)","v":0},{"$f":"D30","v":0},{"$f":"E62*C62","v":0},{"$f":"E62*D62","v":0},{"$f":"G62-F62","v":0}]
[null,"Production",{"$f":"IF(D37=\"Éolienne terrestre\",'3. Données'!C52,IF(D37=\"Solaire PV\",'3. Données'!C54))","v":false},{"$f":"IF(D40=\"Diesel\",('3. Données'!C97)*0.0004,IF(D40=\"Réseau\",'3. Données'!C74))","v":false},{"$f":"D39","v":0},{"$f":"E63*C63","v":0},{"$f":"E63*D63","v":0},{"$f":"G63-F63","v":0}]
[null,"Stockage",{"$f":"IF(D37=\"Éolienne terrestre\",'3. Données'!C52,IF(D37=\"Solaire PV\",'3. Données'!C54))","v":false},{"$f":"IF(D40=\"Diesel\",('3. Données'!C97)*0.0004,IF(D40=\"Réseau\",'3. Données'!C74))","v":false},{"$f":"D51","v":0},0,0,0]
[null,"TOTAL","-","-","-",{"$f":"SUM(F62:F64)","v":0},0,0]
[null,null,null,null,"Veuillez noter que les émissions calculées ici s’afficheront sous « Directes » dans la feuille 6."]
[null,null,null,null,null,null,"Pourcentage annuel moyen de réduction :",{"$f":"(H65/G65)","v":{"$error":"#DIV/0!"}}]

{"sheet":"2. Détermination de la portée","index":2,"n_rows":94,"n_cols":7,"rows_kept":94,"cut":false,"hidden":false,"merged":[[27,1,27,6],[79,1,79,6],[14,1,14,6],[18,2,18,5],[19,2,19,5]]}
[]
[null,"Approche de quantification"]
[]
[]
[null,"Table des matières"]
[null,"1. Détermination de la portée des émissions"]
[null,"2. Définition du scénario du projet"]
[null,"3. Identification des composantes du projet susceptibles de générer des émissions de GES"]
[null,"4. Définition du scénario de référence"]
[null,"5. Identification des composantes du scénario de référence susceptibles de générer des émissions de GES"]
[]
[]
[null,"Détermination de la portée des émissions"]
[]
[null,"Le FIMC reconnaît que, pour certains projets, on peut ne pas être en mesure de quantifier les réductions ou les remplacements directs des émissions en raison de la nature du projet. C’est pourquoi les conseils suivants sont donnés pour remplir ce modèle dans le cadre du programme :\n\n1. Pour les projets de production et de stockage d’énergie, les réductions ou les remplacements des émissions de portée 1 seulement doivent être déclarés au CMIF, mais les demandeurs sont également invités à quantifier les réductions ou les remplacements des émissions de portée 2.\n\n2. Étant donné que les projets d’infrastructure de transport et de distribution, ainsi que les projets déployant d’autres types de technologie, entraînent souvent des réductions ou des remplacements indirects des émissions, plutôt que des réductions ou des remplacements directs, les demandeurs souhaitant déployer ces types de projet doivent quantifier les réductions ou les remplacements des émissions de portée 2 pour être pris en compte dans le cadre du programme."]
[]
[null,"Le Protocole des GES classe les réductions et les remplacements des émissions selon leur portée : "]
[]
[null,"Émissions de portée 1\n\n[DIRECT]","Émissions directes de GES produites par des sources qu'une organisation possède ou contrôle. Par exemple, les émissions attribuables à l'exploitation et à l'entretien des éoliennes appartenant au demandeur."]
[null,"Émissions de portée 2\n\n[INDIRECT]","Émissions indirectes de GES liées à l'énergie achetée (électricité, chauffage et climatisation urbains) qui résultent des activités d'une organisation, mais qui se produisent physiquement à des sources détenues ou contrôlées par une autre organisation. Par exemple, les émissions attribuables à la combustion de combustibles fossiles pour chauffer un bâtiment."]
[]
[]
[null,"Source :","Inventaire des émissions de gaz à effet de serre du gouvernement du Canada - Pièce 7 - Dictionnaire de données pour les ensembles de données de l'inventaire des émissions de gaz à effet de serre"]
[null,null,"[Document Word]"]
[]
[null,"1. Définition du scénario du projet"]
[]
[null,"Décrire le projet et la manière dont il permettra de réduire ou de remplacer les émissions de GES.\nIdentifier les risques susceptibles de modifier sensiblement les réductions ou les remplacements des émissions de GES estimés du projet."]
[]
[null,"2. Identification des composantes du projet susceptibles de générer des émissions de GES"]
[]
[null,"Veuillez identifier toutes les composantes du projet qui contribueront aux émissions liées au projet en sélectionnant une caractérisation dans la liste déroulante."]
[null,"Si une composante est censée contribuer aux émissions liées au projet, veuillez décrire la composante, le type de réduction/remplacement des émissions de GES [LISTE DÉROULANTE] et indiquer toutes les hypothèses."]
[]
[null,"Index des composantes","Catégorie de composante","Caractérisation [Liste déroulante]","Description","Type d’émissions de GES [Liste déroulante]","Hypothèses"]
[null,"P.1.","NOUVELLE installation de production en bloc"]
[null,"P.2.","NOUVELLE infrastructure de transport"]
[null,"P.3.","NOUVELLE infrastructure de distribution"]
[null,"P.4.","NOUVELLES ressources énergétiques distribuées (RED) devant le compteur"]
[null,"P.5.","NOUVELLE installation du client"]
[null,"P.6.","NOUVELLE installation de stockage d’énergie"]
[null,"P.7.","Modernisation des installations de production en bloc existantes"]
[null,"P.8.","Autre"]
[null,null,null,"*Une caractérisation doit être sélectionnée pour chaque composante avant de passer à l’étape suivante."]
[null,"Production d’électricité variable pour les projets déployant une nouvelle installation de production en bloc"]
[]
[null,"Si votre projet vise à déployer une nouvelle installation de production en bloc et si vous prévoyez que la production annuelle d’électricité sera variable, veuillez indiquer la production annuelle prévue en mégawattheures par année (MWh/année) pour chaque année d’exploitation."]
[null,"Pour les années au cours desquelles le projet ne sera pas en activité, veuillez laisser le champ vide."]
[]
[null,"Année","Production annuelle d’électricité [MWh/année]"]
[null,2025]
[null,2026]
[null,2027]
[null,2028]
[null,2029]
[null,2030]
[null,2031]
[null,2032]
[null,2033]
[null,2034]
[null,2035]
[null,2036]
[null,2037]
[null,2038]
[null,2039]
[null,2040]
[null,2041]
[null,2042]
[null,2043]
[null,2044]
[null,2045]
[null,2046]
[null,2047]
[null,2048]
[null,2049]
[null,2050]
[]
[null,"3. Définition du scénario de référence"]
[]
[null,"Décrire le scénario de référence et toutes les émissions de GES associées à ce scénario de référence.\nVeuillez noter qu’il importe de s’assurer qu’il existe une équivalence fonctionnelle entre le scénario de référence et le projet. L’« équivalence fonctionnelle » signifie que la même fonctionnalité est fournie.\n\n*Dans l’élaboration du scénario de référence, le promoteur du projet sélectionne et justifie les hypothèses, les valeurs et les procédures qui assurent que les réductions/remplacements des émissions de GES ou les améliorations de l’élimination ne sont pas surestimés."]
[]
[null,"4. Identification des composantes du scénario de référence susceptibles de générer des émissions de GES"]
[]
[null,"Veuillez identifier toutes les composantes du scénario de référence qui produiront des émissions de GES en sélectionnant une caractérisation dans la liste déroulante. Si une composante est censée contribuer aux émissions de référence, veuillez décrire la composante, le type de réduction/remplacement des émissions de GES [LISTE DÉROULANTE] et indiquer toutes les hypothèses."]
[]
[null,"Index des composantes","Catégorie de composante","Caractérisation [Liste déroulante]","Description","Type de réduction/remplacement des émissions de GES [Liste déroulante]","Hypothèses"]
[null,"R.1.","Installation de production en bloc EXISTANTE","Composante émettrice",null,"Directes"]
[null,"R.2.","Infrastructure de transport EXISTANTE"]
[null,"R.3.","Infrastructure de distribution EXISTANTE"]
[null,"R.4.","Ressources énergétiques distribuées (RED) devant le compteur EXISTANTES"]
[null,"R.5.","Installation du client EXISTANTE"]
[null,"R.6.","Installation de stockage d’énergie EXISTANTE"]
[null,"R.7.","Autre"]
[null,null,null,"*Une caractérisation doit être sélectionnée pour chaque composante avant de passer à l’étape suivante."]

{"sheet":"3. Données","index":3,"n_rows":393,"n_cols":28,"rows_kept":393,"cut":false,"hidden":false,"merged":[[293,1,293,2],[303,1,303,2],[309,1,309,2],[375,1,375,2],[224,1,224,5],[231,1,231,2],[241,1,241,2],[257,1,257,2],[267,1,267,2]]}
[]
[null,"Référentiel des facteurs d’émissions"]
[]
[]
[null,"Table des matières"]
[null,"1. Facteurs d’émission de l’électricité du réseau par province et territoire (sans les émissions de CO2 de la biomasse et du GNR)"]
[null,"2. Facteurs d’émission du cycle de vie propre à la technologie (NREL)"]
[null,"3. Facteurs d’émission de la combustion des liquides de gaz naturel"]
[null,"4. Autres facteurs d’émission de la combustion"]
[null,"5. Facteurs d’émission de la combustion mobile et du transport de marchandises"]
[null,"6. Facteurs d’émission de la biomasse"]
[null,"7. Facteurs de conversion courants"]
[null,"7.1 Préfixes et équivalents"]
[null,"7.2 Distance"]
[null,"7.3 Superficie"]
[null,"7.4 Volume"]
[null,"7.5 Poids et masse"]
[null,"7.6 Kilométrage/millage d’un véhicule"]
[null,"7.7 Termes liés à l’énergie"]
[null,"7.8 Gaz naturel liquéfié (GNL)"]
[]
[]
[null,"Facteurs d’émission de l’électricité du réseau par province et territoire (sans les émissions de CO2 de la biomasse et du GNR)"]
[]
[null,"- L’intensité des émissions du réseau correspond au rapport entre les émissions de GES provenant de l’électricité et les ventes régionales d’électricité. Intensité des émissions du réseau = (Émissions de la combustion provenant de la production d’électricité par les fournisseurs d’électricité + Émissions des processus de transport et de distribution d’électricité + (Émissions provenant de la production d’électricité par l’industrie * Électricité vendue par l’industrie aux fournisseurs d’électricité / Électricité produite par l’industrie (autoconsommée et vendue aux fournisseurs d’électricité))) / Électricité vendue par les fournisseurs d’électricité aux consommateurs (y compris l’électricité produite par l’industrie)."]
[null,"- Ces facteurs correspondent au scénario de modélisation des mesures supplémentaires, qui est fondé sur le scénario de référence mais tient également compte des politiques et des mesures en cours d’élaboration et pour lesquelles il existe suffisamment d’information pour qu’elles puissent être modélisées. (Ce scénario a été retenu comme l’estimation la plus prudente.)"]
[null,"- Les flux d’électricité entre les régions sont indirectement pris en compte dans la méthode de calcul, mais les émissions provenant de la production d’électricité sont attribuées à la région où l’électricité a été produite. Ainsi, toutes les importations d’électricité contribuent à réduire l’intensité des émissions du réseau électrique dans la région importatrice, puisque l’électricité importée ne produit pas d’émissions. Au contraire, les régions qui utilisent des combustibles fossiles pour produire de l’électricité ont tendance à augmenter l’intensité des émissions de leur réseau électrique lorsqu’elles exportent de l’électricité, puisque les émissions de l’électricité exportée sont attribuées à la région exportatrice."]
[]
[null,"Catalogue de données d’Environnement et Changement climatique Canada; intensités des réseaux électriques"]
[]
[null,"Average Grid Intensity Factor (tCO2e/MWh) by Province and Territory","2025","2026","2027","2028","2029","2030","2031","2032","2033","2034","2035","2036","2037","2038","2039","2040","2041","2042","2043","2044","2045","2046","2047","2048","2049","2050"]
[null,"Alberta",0.26519999999999999,0.2268,0.2102,0.1721,0.16500000000000001,0.1709,0.16619999999999999,0.15390000000000001,0.14499999999999999,0.1384,0.1188,0.1065,0.1003,8.2299999999999998E-2,7.7200000000000005E-2,7.1400000000000005E-2,6.9900000000000004E-2,7.0300000000000001E-2,7.0900000000000005E-2,7.1499999999999994E-2,7.1599999999999997E-2,7.0599999999999996E-2,7.0300000000000001E-2,6.8599999999999994E-2,4.3900000000000002E-2,1.9199999999999998E-2]
[null,"Colombie-Britannique",5.3E-3,4.2000000000000006E-3,3.8999999999999998E-3,3.7000000000000002E-3,1.5E-3,1.4E-3,1.4E-3,1.2999999999999999E-3,1.1999999999999999E-3,1.1000000000000001E-3,1E-3,5.9999999999999995E-4,5.9999999999999995E-4,5.0000000000000001E-4,5.0000000000000001E-4,5.0000000000000001E-4,1E-4,1E-4,1E-4,1E-4,1E-4,1E-4,1E-4,1E-4,1E-4,1E-4]
[null,"Manitoba",5.0000000000000001E-4,6.9999999999999999E-4,6.9999999999999999E-4,6.9999999999999999E-4,6.9999999999999999E-4,6.9999999999999999E-4,6.9999999999999999E-4,6.9999999999999999E-4,6.9999999999999999E-4,6.9999999999999999E-4,6.9999999999999999E-4,6.9999999999999999E-4,6.9999999999999999E-4,6.9999999999999999E-4,5.9999999999999995E-4,5.9999999999999995E-4,5.9999999999999995E-4,5.9999999999999995E-4,5.9999999999999995E-4,5.9999999999999995E-4,5.9999999999999995E-4,5.9999999999999995E-4,5.9999999999999995E-4,5.9999999999999995E-4,5.9999999999999995E-4,5.9999999999999995E-4]
[null,"Nouveau-Brunswick",0.31910000000000005,0.30599999999999999,0.27810000000000001,0.2661,0.252,3.6999999999999998E-2,3.1800000000000002E-2,2.4799999999999999E-2,2.9100000000000001E-2,2.9000000000000001E-2,4.6899999999999997E-2,5.2200000000000003E-2,6.5000000000000002E-2,6.4399999999999999E-2,2.7800000000000002E-2,2.7699999999999999E-2,2.8999999999999998E-3,2.5000000000000001E-3,2.5000000000000001E-3,2.3999999999999998E-3,1.9E-3,1.43E-2,1.2500000000000001E-2,1.06E-2,1.1999999999999999E-3,8.9999999999999998E-4]
[null,"Terre-Neuve-et-Labrador",6.3E-3,6.1999999999999998E-3,6.0000000000000001E-3,5.7999999999999996E-3,6.4000000000000003E-3,5.5999999999999999E-3,5.4999999999999997E-3,5.3E-3,5.1999999999999998E-3,5.0999999999999995E-3,5.0000000000000001E-3,4.7999999999999996E-3,5.0000000000000001E-3,5.3E-3,5.3E-3,5.1999999999999998E-3,5.0999999999999995E-3,4.9000000000000007E-3,4.4999999999999997E-3,4.2000000000000006E-3,4.2000000000000006E-3,4.0999999999999995E-3,4.0999999999999995E-3,4.0000000000000001E-3,4.0000000000000001E-3,3.8999999999999998E-3]
[null,"Territoires du Nord-Ouest",1E-3,0,0,5.1999999999999998E-3,4.5999999999999999E-3,4.0999999999999995E-3,0,0,0,0,0,0,0,0,0,0,0,0,0,0,0,0,0,0,0,0]
[null,"Nouvelle-Écosse",0.52979999999999994,0.47789999999999999,0.46189999999999998,0.4481,0.3039,8.8200000000000001E-2,8.9700000000000002E-2,0.112,0.105,9.8400000000000001E-2,7.0599999999999996E-2,6.6700000000000009E-2,6.3200000000000006E-2,6.0499999999999998E-2,5.8999999999999997E-2,5.7200000000000001E-2,5.5399999999999998E-2,4.6700000000000005E-2,4.5899999999999996E-2,6.3299999999999995E-2,6.0200000000000004E-2,5.7099999999999998E-2,5.3700000000000005E-2,5.0299999999999997E-2,4.7100000000000003E-2,3.8600000000000002E-2]
[null,"Nunavut",0.49439999999999995,0.45660000000000001,0.44289999999999996,0.44419999999999998,0.45689999999999997,0.45430000000000004,0.4667,0.41070000000000001,0.42499999999999999,0.44900000000000001,0.40100000000000002,0.41139999999999999,0.4239,0.37810000000000005,0.38930000000000003,0.40339999999999998,0.36119999999999997,0.37389999999999995,0.3392,0.30430000000000001,0.31869999999999998,0.28889999999999999,0.25769999999999998,0.26789999999999997,0.2374,0.2087]
[null,"Ontario",6.5299999999999997E-2,7.6100000000000001E-2,5.6899999999999999E-2,5.04E-2,0.05,6.5000000000000002E-2,5.5899999999999998E-2,6.5799999999999997E-2,6.8400000000000002E-2,7.6100000000000001E-2,3.0499999999999999E-2,2.3300000000000001E-2,1.9100000000000002E-2,1.3599999999999999E-2,1.0699999999999999E-2,1.3099999999999999E-2,1.29E-2,1.1900000000000001E-2,1.1699999999999999E-2,1.15E-2,1.4E-2,1.3800000000000002E-2,1.3599999999999999E-2,1.34E-2,1.2500000000000001E-2,3.3999999999999998E-3]
[null,"Île‑du‑Prince‑Édouard",8.0000000000000004E-4,8.0000000000000004E-4,8.0000000000000004E-4,8.0000000000000004E-4,8.0000000000000004E-4,8.0000000000000004E-4,8.0000000000000004E-4,8.0000000000000004E-4,6.9999999999999999E-4,6.9999999999999999E-4,6.9999999999999999E-4,6.9999999999999999E-4,6.9999999999999999E-4,5.9999999999999995E-4,5.9999999999999995E-4,5.9999999999999995E-4,5.9999999999999995E-4,5.9999999999999995E-4,5.9999999999999995E-4,5.9999999999999995E-4,5.9999999999999995E-4,5.0000000000000001E-4,5.0000000000000001E-4,5.0000000000000001E-4,5.0000000000000001E-4,5.0000000000000001E-4]
[null,"Québec",0,0,0,0,0,0,0,0,0,0,0,0,0,0,0,0,0,0,0,0,0,0,0,0,0,0]
[null,"Saskatchewan",0.52290000000000003,0.51529999999999998,0.49939999999999996,0.3412,0.33080000000000004,0.1153,0.1171,0.10859999999999999,0.1043,0.1003,4.87E-2,4.0399999999999998E-2,3.6999999999999998E-2,3.49E-2,5.2399999999999995E-2,5.8599999999999999E-2,6.2600000000000003E-2,5.7599999999999998E-2,5.3200000000000004E-2,4.0799999999999996E-2,2.3800000000000002E-2,2.3199999999999998E-2,2.29E-2,2.23E-2,2.18E-2,1.26E-2]
[null,"Yukon",7.0000000000000001E-3,6.9000000000000008E-3,6.7999999999999996E-3,7.0000000000000001E-3,8.3000000000000001E-3,1.0199999999999999E-2,4.19E-2,4.8000000000000001E-2,5.21E-2,5.2299999999999999E-2,5.8900000000000001E-2,5.74E-2,5.5200000000000006E-2,5.3200000000000004E-2,5.2299999999999999E-2,4.6299999999999994E-2,2.98E-2,2.87E-2,2.7300000000000001E-2,2.52E-2,2.4500000000000001E-2,2.46E-2,2.8500000000000001E-2,2.7199999999999998E-2,2.7300000000000001E-2,2.7600000000000003E-2]
[]
[]
[null,"Facteurs d’émission du cycle de vie propre à la technologie (NREL)"]
[]
[null,"National Renewable Energy Laboratory; Life Cycle Emissions Factors for Electricity Generation Technologies (Facteurs d’émission du cycle de vie des technologies de production d’électricité)"]
[]
[null,"Generation Technology","Life Cycle Emission Factor [tCO2e/MWh]"]
[null,"Éolienne terrestre",1.2E-2]
[null,"Éolienne en mer",1.9E-2]
[null,"Solaire PV",4.8890000000000003E-2]
[null,"Énergie solaire à concentration (cylindro-parabolique)",2.5999999999999999E-2]
[null,"Énergie solaire à concentration (centrale à tour)",3.7999999999999999E-2]
[null,"Énergie solaire à concentration (parabolique)",1.5000000000000001E-2]
[null,"Hydroélectricité (réservoir)",1.2999999999999999E-2]
[null,"Hydroélectricité (au fil de l’eau)",2.3E-2]
[null,"Géothermie (EGS binaire)",3.2000000000000001E-2]
[null,"Géothermie (HT flash)",4.7E-2]
[null,"Géothermie (HT binaire)",1.0999999999999999E-2]
[null,"Océans",8.0000000000000002E-3]
[null,"Bioénergie (cocombustion)",0.17]
[null,"Bioénergie (combustion directe)",4.1999999999999996E-2]
[null,"Bioénergie (gazéification)",0.04]
[null,"Bioénergie (moteur de gazéification)",9.5000000000000001E-2]
[null,"Hydroélectricité à réserve pompée",7.4000000000000003E-3]
[null,"Cycle combiné au gaz naturel (CCGN)",0.45]
[null,"Turbine à combustion alimentée au gaz naturel",0.60450000000000004]
[null,"Cycle combiné au gaz naturel avec captage et stockage du carbone (CCGN-CCS)",0.111]
[null,"Cycle combiné au gaz naturel liquéfié",0.501]
[null,"Turbine à combustion alimentée au gaz naturel liquéfié",0.65100000000000002]
[null,"Gaz naturel (non précisé)",0.39850000000000002]
[]
[]
[null,"Facteurs d’émission de la combustion des liquides de gaz naturel"]
[null,"Veuillez noter les unités dans lesquelles ces facteurs d'émission sont exprimés. Une conversion d'unités peut être nécessaire."]
[null,"Rapport d’inventaire national 1990-2022 : sources et puits de gaz à effet de serre au Canada [partie 2]"]
[]
[null,"Liquid","CO2e Emission Factor (gCO2e/L)"]
[null,"Propane"]
[null,"Résidentiel",1544.376]
[null,"Tous les autres usages",1544.2919999999999]
[null,"Éthane",1015.292]
[null,"Butane",1776.2919999999999]
[]
[]
[null,"Autres facteurs d’émission de la combustion"]
[null,"Veuillez noter les unités dans lesquelles ces facteurs d'émission sont exprimés. Une conversion d'unités peut être nécessaire."]
[null,"Rapport d’inventaire national 1990-2022 : sources et puits de gaz à effet de serre au Canada [partie 2]"]
[]
[null,"Liquid","CO2e Emission Factor (gCO2e/L)"]
[null,"Mazout léger"]
[null,"Fournisseurs d’électricité",2766.2550000000001]
[null,"Industriel",2761.3830000000003]
[null,"Consommation des producteurs",2678.3830000000003]
[null,"Résidentiel",2755.3180000000002]
[null,"Foresterie, construction, commercial/institutionnel, autre",2761.9430000000002]
[null,"Mazout lourd"]
[null,"Fournisseurs d’électricité",3173.9120000000003]
[null,"Industriel",3176.32]
[null,"Consommation des producteurs",3210.32]
[null,"Foresterie, construction, commercial/institutionnel, autre",3174.556]
[null,"Kérosène"]
[null,"Fournisseurs d’électricité",2568.3830000000003]
[null,"Industriel",2568.3830000000003]
[null,"Consommation des producteurs",2568.3830000000003]
[null,"Résidentiel",2562.3180000000002]
[null,"Foresterie, construction, commercial/institutionnel, autre",2568.9430000000002]
[null,"Diesel - Raffineries et autres",2689.0140000000001]
[null,"Diesel - Améliorations",2689.0140000000001]
[null,"Coke de pétrole - Installations de valorisation",3503.7200000000003]
[null,"Coke de pétrole - Raffineries et autres",3836.6475]
[null,"Gaz de distillation - Raffineries et autres",2.9963000000000002]
[null,"Gaz de distillation - Améliorations",2.1463920000000001]
[null,"Essence automobile",2315.1000000000004]
[]
[]
[null,"Facteurs d’émission de la combustion mobile et du transport de marchandises"]
[null,"Veuillez noter les unités dans lesquelles ces facteurs d'émission sont exprimés. Une conversion d'unités peut être nécessaire."]
[null,"Rapport d’inventaire national 1990-2022 : sources et puits de gaz à effet de serre au Canada [partie 2]"]
[]
[null,"Mode of Transportation","CO2e Emission Factor (g/L)"]
[null,"Transport routier"]
[null,"Véhicules à essence"]
[null,"Véhicules légers à essence (VLE)"]
[null,"Niveau 3",2312.2630000000004,"*Niveau 3 Années modèles 2017 et ultérieures. Les normes sont conçues pour réduire les émissions d’échappement et par évaporation et visent à réduire de manière significative les émissions d’hydrocarbures (HC), de monoxyde de carbone (CO), d’oxydes d’azote (NOx) et de matières particulaires (MP). "]
[null,"Niveau 2",2317.0410083979327,"*Niveau 2 Années modèles 2004-2016. Les normes exigeaient l’utilisation de carburants moins polluants et visaient à réduire les émissions d’hydrocarbures (HC), de monoxyde de carbone (CO), d’oxydes d’azote (NOx) et de matières particulaires (MP)."]
[null,"Niveau 1",2439.0841364313173,"*Niveau 1 Années modèles 1994-2003. Les normes étaient axées sur la réduction des polluants, notamment les hydrocarbures (HC), le monoxyde de carbone (CO), les oxydes d’azote (NOx) et les matières particulaires (MP)."]
[null,"Niveau 0",2491.1600000000003,"*Niveau 0 Années modèles 1981-1993. Les normes étaient axées sur la réduction des émissions d’hydrocarbures (HC), de monoxyde de carbone (CO) et d’oxydes d’azote (NOx), jetant les bases de niveaux subséquents plus stricts."]
[null,"Convertisseur catalytique d’oxydation",2374.86]
[null,"Système sans catalyseur",2327.6000000000004]
[null,"Camions légers à essence (CLE)"]
[null,"Niveau 3",2312.2630000000004,"*Niveau 3 Années modèles 2017 et ultérieures. Les normes sont conçues pour réduire les émissions d’échappement et par évaporation et visent à réduire de manière significative les émissions d’hydrocarbures (HC), de monoxyde de carbone (CO), d’oxydes d’azote (NOx) et de matières particulaires (MP). "]
[null,"Niveau 2",2317.0410083979327,"*Niveau 2 Années modèles 2004-2016. Les normes exigeaient l’utilisation de carburants moins polluants et visaient à réduire les émissions d’hydrocarbures (HC), de monoxyde de carbone (CO), d’oxydes d’azote (NOx) et de matières particulaires (MP)."]
[null,"Niveau 1",2468.6735829894842,"*Niveau 1 Années modèles 1994-2003. Les normes étaient axées sur la réduction des polluants, notamment les hydrocarbures (HC), le monoxyde de carbone (CO), les oxydes d’azote (NOx) et les matières particulaires (MP)."]
[null,"Niveau 0",2488.0800000000004,"*Niveau 0 Années modèles 1981-1993. Les normes étaient axées sur la réduction des émissions d’hydrocarbures (HC), de monoxyde de carbone (CO) et d’oxydes d’azote (NOx), jetant les bases de niveaux subséquents plus stricts."]
[null,"Convertisseur catalytique d’oxydation",2372.34]
[null,"Système sans catalyseur",2330.4]
[null,"Véhicules lourds à essence"]
[null,"Catalyseur à trois voies",2362.2040000000002]
[null,"Système sans catalyseur",2327.875]
[null,"Sans dispositif",2343.2800000000002]
[null,"Motocyclettes"]
[null,"Système sans catalyseur",2339.7530000000002]
[null,"Sans dispositif",2384.42]
[null,"Véhicules à moteur diesel"]
[null,"Véhicules légers à moteur diesel (VLMD)"]
[null,"Dispositif perfectionné",2740.2280000000001]
[null,"Dispositif à efficacité modérée ",2738.0540000000001]
[null,"Sans dispositif",2725.7000000000003]
[null,"Camions légers à moteur diesel (CLMD)"]
[null,"Dispositif perfectionné",2740.7040000000002]
[null,"Dispositif à efficacité modérée",2738.0540000000001]
[null,"Sans dispositif",2725.28]
[null,"Véhicules lourds à moteur diesel"]
[null,"Dispositif perfectionné",2723.5949999999998]
[null,"Dispositif à efficacité modérée",2706.15]
[null,"Sans dispositif",2704.5749999999998]
[null,"Véhicules au gaz naturel",2.1622999999999997]
[null,"Véhicules au propane",1540.3400000000001]
[null,"Véhicules hors route"]
[null,"Véhicules hors route à essence 2 temps",2606.3825999999999]
[null,"Véhicules hors route à essence 4 temps",2466.623]
[null,"Véhicules hors route à moteur diesel < 19kW",2688.4201148893244]
[null,"Véhicules hors route à moteur diesel ≥ 19kW, niveau 1-3",2688.4201148893244]
[null,"Véhicules hors route à moteur diesel ≥ 19kW, niveau 4",2742.5974439891165]
[null,"Véhicules hors route à huile de graissage 2 temps",3064.56]
[null,"Véhicules hors route au gaz naturel",2.1622999999999997]
[null,"Véhicules hors route au propane",1556.0218403848453]
[null,"Locomotives alimentées au diesel",2957.357]
[null,"Transport maritime"]
[null,"Essence",2330.04558]
[null,"Diesel",2706.6287400000001]
[null,"Mazout léger",2779.4989999999998]
[null,"Mazout lourd",3185.6207999999997]
[null,"Kérosène",2585.3277999999996]
[null,"Transport aérien"]
[null,"Essence",2447.67]
[null,"Carburéacteur",2579.0454999999997]
[null,"Carburants renouvelables"]
[null,"Éthanol",1517.79]
[null,"Biodiesel",2515.2949999999996]
[]
[]
[null,"GHGenius v5.0d"]
[null,"Veuillez noter les unités dans lesquelles ces facteurs d'émission sont exprimés. Une conversion d'unités peut être nécessaire."]
[null,"Ces facteurs d’émission peuvent être utilisés lorsque le volume de carburant consommé est inconnu mais la distance parcourue est connue."]
[]
[null,"Mode of Transportation","CO2e Emission Factor (g-CO2e/km)"]
[null,"Véhicules utilitaires légers"]
[null,"Essence",170.58588350432836]
[null,"Hybride à essence",105.42493070066966]
[null,"Gaz naturel",143.65727802988593]
[null,"Propane",149.2313455165808]
[null,"Diesel",163.53400340767394]
[null,"E10",164.97270678774672]
[null,"Véhicules lourds"]
[null,"Diesel",1105.8957085583488]
[null,"Essence",1340.86804178634]
[null,"Gaz naturel",975.27812494802185]
[null,"GNL / diesel (95/5)",856.61172713366523]
[]
[]
[null,"Facteurs d’émission de la biomasse"]
[null,"Veuillez noter les unités dans lesquelles ces facteurs d'émission sont exprimés. Une conversion d'unités peut être nécessaire."]
[null,"Rapport d’inventaire national 1990-2022 : sources et puits de gaz à effet de serre au Canada [partie 2]"]
[]
[null,"Source","Description","Emission Factor (CO2) [g/kg fuel]","Emission Factor (CH4) [g/kg fuel]","Emission Factor (N2O) [g/kg fuel]"]
[null,"Bois de chauffage / déchets de bois","Combustion industrielle",1715,0.1,7.0000000000000007E-2]
[null,"Feux de forêt","Combustion à l’air libre","S.O.","S.O.","S.O."]
[null,"Brûlage dirigé","Combustion à l’air libre","S.O.","S.O.","S.O."]
[null,"Liqueur résiduaire","Combustion industrielle",1250,0.03,5.0000000000000001E-3]
[null,"Poêles et foyers","Combustion domestique"]
[null,"Poêles classiques",null,1539,12.9,0.12]
[null,"Foyers classiques avec unité encastrée",null,1539,12.9,0.12]
[null,"Poêles et foyers perfectionnés; systèmes antipollution catalytiques",null,1539,5.9,0.12]
[null,"Poêles à granules",null,1652,4.12,5.8999999999999997E-2]
[null,"Autres dispositifs de combustion du bois",null,1539,4.12,5.8999999999999997E-2]
[]
[null,"Remarques :"]
[]
[null,"- S.O. = Sans objet"]
[null,"- Les émissions de CO2 résultant de la biomasse brûlée à des fins énergétiques ou agricoles ne sont pas comprises dans les totaux de l’inventaire, tandis que les émissions de CH4 et de N2O de ces mêmes sources sont inventoriées dans le secteur de l’énergie. Toutes les émissions de gaz à effet de serre (GES), notamment de CO2, résultant de la biomasse brûlée dans les forêts aménagées (feux de végétation et brûlage dirigé), sont déclarées dans le secteur Affectation des terres, changements d’affectation des terres et foresterie (ATCATF) et sont exclues des totaux de l’inventaire national."]
[]
[]
[null,"Facteurs de conversion courants"]
[]
[null,"Tables de conversion d’unités d’énergie - Régie de l’énergie du Canada"]
[]
[null,"Préfixes et équivalents"]
[]
[null,"Prefixes","Equivalents"]
[null,"k (kilo)","103"]
[null,"M (méga)","106"]
[null,"G (giga)","109"]
[null,"T (téra)","1012"]
[null,"P (péta)","1015"]
[null,"E (exa)","1018"]
[]
[null,"Distance"]
[]
[null,"Unit","Equivalents"]
[null,"1,0 mètre (m)","3,2808 pieds (pi)"]
[null,"1,0 mètre (m)","1 x 10-3 kilomètre (km)"]
[null,"1,0 mètre (m)","6,2137 x 10-4 milles (mi)"]
[null,"1,0 pied (pi)","0,3048 mètre (m)"]
[null,"1,0 pied (pi)","3,048 x 10-4 kilomètres (km)"]
[null,"1,0 pied (pi)","1,8939 x 10-4 mille (mi)"]
[null,"1,0 kilomètre (km)","3 280,8399 pieds (pi)"]
[null,"1,0 kilomètre (km)","1 000 mètres (m)"]
[null,"1,0 kilomètre (km)","0,6214 mille (mi)"]
[null,"1,0 mille (mi)","5 280 pieds (pi)"]
[null,"1,0 mille (mi)","1,6094 kilomètre (km)"]
[null,"1,0 mille (mi)","1 609,344 mètres (m)"]
[]
[null,"Superficie"]
[]
[null,"Unit","Equivalents"]
[null,"1,0 hectare","2,4711 acres"]
[null,"1,0 hectare","3,861 x 10-3 milles carrés (mi²)"]
[null,"1,0 acre","0,4047 hectare"]
[null,"1,0 acre","1,5625 x 10-3 mille carré (mi²)"]
[null,"1,0 mille carré (mi²)","640 acres"]
[null,"1,0 mille carré (mi²)","258,9988 hectares"]
[]
[null,"Volume"]
[]
[null,"Unit","Equivalents"]
[null,"1,0 mètre cube (m³)","6,2898 barils (b)"]
[null,"1,0 mètre cube (m³)","1 000 litres (l)"]
[null,"1,0 mètre cube (m³)","219,9692 gallons impériaux"]
[null,"1,0 mètre cube (m³)","264,1721 gallons US"]
[null,"1,0 mètre cube (m³) (@ 101,325 kPa et 15° C)","35,3147 pieds cubes (pi³) de gaz naturel (@ 14,73 lb/po² et 60° F)"]
[null,"1,0 pied cube (pi³) de gaz naturel (@ 14,73 lb/po² et 60° F)","0,028317 mètre cube (m³) (@ 101,325 kPa et 15° C)"]
[null,"1,0 gallon US","0,0238 baril (b)"]
[null,"1,0 gallon US","0,8327 gallon impérial"]
[null,"1,0 gallon US","3,7854 litres (l)"]
[null,"1,0 gallon US","3,7854 x 10-3 mètres cubes (m³)"]
[null,"1,0 litre (l)","0,22 gallon impérial"]
[null,"1,0 litre (l)","6,2898 x 10-3 barils (b)"]
[null,"1,0 litre (l)","0,2642 gallon US"]
[null,"1,0 litre (l)","1 x 10-3 mètre cube (m³)"]
[null,"1,0 gallon impérial","4,5461 litres (l)"]
[null,"1,0 gallon impérial","0,0286 baril (b)"]
[null,"1,0 gallon impérial","1,201 gallon US"]
[null,"1,0 gallon impérial","4,5461 x 10-3 mètres cubes (m³)"]
[null,"1,0 baril (b)","0,159 mètre cube (m³)"]
[null,"1,0 baril (b)","158,9873 litres (l)"]
[null,"1,0 baril (b)","34,9723 gallons impériaux"]
[null,"1,0 baril (b)","42 gallons US"]
[]
[null,"Poids et masse"]
[]
[null,"Unit","Equivalents"]
[null,"1,0 kilogramme (kg)","1 x 10-3 tonne (t)"]
[null,"1,0 kilogramme (kg)","2,2046 livres (lb)"]
[null,"1,0 tonne (t)","1 000 kilogrammes (kg)"]
[null,"1,0 tonne (t)","2 204,6226 livres (lb)"]
[null,"1,0 livre (lb)","0,4536 kilogramme (kg)"]
[null,"1,0 livre (lb)","4,5359 x 10-4 tonnes (t)"]
[]
[null,"Kilométrage/millage d’un véhicule"]
[]
[null,"Unit","Equivalents"]
[null,"1,0 kilomètre/litre (km/l)","2,3522 milles/gallon (mi/gal)"]
[null,"1,0 mille/gallon (mi/gal)","0,4252 kilomètre/litre (km/l)"]
[]
[null,"Termes relatifs à l’énergie"]
[]
[null,"Unit","Equivalents"]
[null,"1,0 watt (W)","1 joule (J) par seconde"]
[null,"1,0 gigajoule (GJ)","1 x 109 joule (J)"]
[null,"1,0 gigajoule (GJ)","0,9478 million d’unités thermiques britanniques (MMBtu)"]
[null,"1,0 gigajoule (GJ)","2,7778 x 105 wattheures (Wh)"]
[null,"1,0 gigajoule (GJ)","277,7778 kilowattheures (kWh)"]
[null,"1,0 gigajoule (GJ)","0,2778 mégawattheure (MWh)"]
[null,"1,0 gigajoule (GJ)","2,7778 x 10-4 gigawattheures (GWh)"]
[null,"1,0 gigajoule (GJ)","2,7778 x 10-7 terawattheures (TWh)"]
[null,"1,0 gigajoule (GJ)","947,8171 pieds cubes (pi³) de gaz naturel"]
[null,"1,0 gigajoule (GJ)","26,853 mètres cubes (m³) de gaz naturel"]
[null,"1,0 million d’unités thermiques britanniques (MMBtu)","1,0551 x 109 joule (J)"]
[null,"1,0 million d’unités thermiques britanniques (MMBtu)","1,0551 gigajoule (GJ)"]
[null,"1,0 million d’unités thermiques britanniques (MMBtu)","2,9307 x 105 wattheures (Wh)"]
[null,"1,0 million d’unités thermiques britanniques (MMBtu)","293,0711 kilowattheures (kWh)"]
[null,"1,0 million d’unités thermiques britanniques (MMBtu)","0,2931 mégawattheure (MWh)"]
[null,"1,0 million d’unités thermiques britanniques (MMBtu)","2,9307 x 10-4 gigawattheures (GWh)"]
[null,"1,0 million d’unités thermiques britanniques (MMBtu)","2,9307 x 10-7 terawattheures (TWh)"]
[null,"1,0 million d’unités thermiques britanniques (MMBtu)","1 000 pieds cubes (pi³) de gaz naturel"]
[null,"1,0 million d’unités thermiques britanniques (MMBtu)","28,3278 mètres cubes (m³)"]
[null,"1,0 wattheure (Wh)","3 600 joules (J)"]
[null,"1,0 wattheure (Wh)","3,6 x 10-6 gigajoules (GJ)"]
[null,"1,0 wattheure (Wh)","3,4121 x 10-6 millions d’unités thermiques britanniques (MMBtu)"]
[null,"1,0 wattheure (Wh)","1 x 10-3 kilowattheure (kWh)"]
[null,"1,0 wattheure (Wh)","1 x 10-6 mégawattheure (MWh)"]
[null,"1,0 wattheure (Wh)","1 x 10-9 gigawattheure (GWh)"]
[null,"1,0 wattheure (Wh)","1 x 10-12 terawattheure (TWh)"]
[null,"1,0 kilowattheure (kWh)","3,6 x 106 joules (J)"]
[null,"1,0 kilowattheure (kWh)","3,6 x 10-3 gigajoules (GJ)"]
[null,"1,0 kilowattheure (kWh)","3,4121 x 10-3 millions d’unités thermiques britanniques (MMBtu)"]
[null,"1,0 kilowattheure (kWh)","1 000 wattheures (Wh)"]
[null,"1,0 kilowattheure (kWh)","1 x 10-3 mégawattheure (MWh)"]
[null,"1,0 kilowattheure (kWh)","1 x 10-6 gigawattheure (GWh)"]
[null,"1,0 kilowattheure (kWh)","1 x 10-9 terawattheure (TWh)"]
[null,"1,0 mégawattheure (MWh)","3,6 x 109 joules (J)"]
[null,"1,0 mégawattheure (MWh)","3,60 gigajoules (GJ)"]
[null,"1,0 mégawattheure (MWh)","3,4122 millions d’unités thermiques britanniques (MMBtu)"]
[null,"1,0 mégawattheure (MWh)","1 x 106 wattheure (Wh)"]
[null,"1,0 mégawattheure (MWh)","1 000 kilowattheures (kWh)"]
[null,"1,0 mégawattheure (MWh)","1 x 10-3 gigawattheure (GWh)"]
[null,"1,0 mégawattheure (MWh)","1 x 10-6 terawattheure (TWh)"]
[null,"1,0 gigawattheure (GWh)","3,6 x 1012 joules (J)"]
[null,"1,0 gigawattheure (GWh)","3 600 gigajoules (GJ)"]
[null,"1,0 gigawattheure (GWh)","3 412,1416 millions d’unités thermiques britanniques (MMBtu)"]
[null,"1,0 gigawattheure (GWh)","1 x 109 wattheure (Wh)"]
[null,"1,0 gigawattheure (GWh)","1 x 106 kilowattheure (kWh)"]
[null,"1,0 gigawattheure (GWh)","1 000 mégawattheures (MWh)"]
[null,"1,0 gigawattheure (GWh)","1 x 10-3 terawattheure (TWh)"]
[null,"1,0 terawattheure (TWh)","3,6 x 1015 joules (J)"]
[null,"1,0 terawattheure (TWh)","3,6 x 106 gigajoules (GJ)"]
[null,"1,0 terawattheure (TWh)","3,4121 x 106 millions d’unités thermiques britanniques (MMBtu)"]
[null,"1,0 terawattheure (TWh)","1 x 1012 wattheure (Wh)"]
[null,"1,0 terawattheure (TWh)","1 x 109 kilowattheure (kWh)"]
[null,"1,0 terawattheure (TWh)","1 x 106 mégawattheure (MWh)"]
[null,"1,0 terawattheure (TWh)","1 000 gigawattheures (GWh)"]
[null,"1,0 pied cube (pi³) de gaz naturel","1,0551 x 10-3 gigajoule (GJ)"]
[null,"1,0 pied cube (pi³) de gaz naturel","1 x 10-3 million d’unités thermiques britanniques (MMBtu)"]
[null,"1,0 mètre cube (m³) de gaz naturel","0,0373 gigajoule (GJ)"]
[null,"1,0 mètre cube (m³) de gaz naturel","0,0353 million d’unités thermiques britanniques (MMBtu)"]
[null,"1,0 unité thermique (thm)","1 x 105 unité thermique britannique (Btu)"]
[null,"1,0 unité thermale (thm)","0,10 million d’unités thermiques britanniques (MMBtu)"]
[null,"1,0 dizaine d’unités thermales (dth)","10 unité thermale (thm)"]
[null,"1,0 dizaine d’unités thermales (dth)","1 million d’unités thermiques britanniques (MMBtu)"]
[]
[null,"Gaz naturel liquéfié (GNL)"]
[]
[null,"Unit","Equivalents"]
[null,"1,0 mètre cube (m³) de gaz naturel","35,301 pieds cubes (pi³) de gaz naturel"]
[null,"1,0 mètre cube (m³) de gaz naturel","1,7111 x 10-3 mètre cube (m³) de gaz naturel liquéfié"]
[null,"1,0 mètre cube (m³) de gaz naturel","7,2487 x 10-4 tonnes (t) de gaz naturel liquéfié"]
[null,"1,0 mètre cube (m³) de gaz naturel liquéfié","2,0631 x 104 pieds cubes (pi³) de gaz naturel"]
[null,"1,0 mètre cube (m³) de gaz naturel liquéfié","584,431 mètres cubes (m³) de gaz naturel"]
[null,"1,0 mètre cube (m³) de gaz naturel liquéfié","0,4049 tonne (t) de gaz naturel liquéfié"]
[null,"1,0 mètre cube (m³) de gaz naturel liquéfié","2,0631 x 10-5 milliards de pieds cubes (Gpi³) de gaz naturel"]
[null,"1,0 tonne (t) de gaz naturel liquéfié","1 379,549 mètres cubes (m³) de gaz naturel"]
[null,"1,0 tonne (t) de gaz naturel liquéfié","2,4697 mètres cubes (m³) de gaz naturel liquéfié"]
[null,"1,0 tonne (t) de gaz naturel liquéfié","4,8699 x 104 pieds cubes (pi³) de gaz naturel"]
[null,"1,0 pied cube (pi³) de gaz naturel","2,0531 x 10-5 tonnes (t) de gaz naturel liquéfié"]
[null,"1,0 tonne de GNL par année","133,4232 pieds cubes de gaz naturel par jour (pi³/j)"]
[null,"1,0 million de tonnes de GNL par année","0,1334 milliard de pieds cubes de gaz naturel par jour (Gpi³/j)"]
[null,"1,0 milliard de pieds cubes (Gpi³) de gaz naturel","4,8471 x 104 mètres cubes (m³) de gaz naturel liquéfié"]
[null,"1,0 milliard de pieds cubes de gaz naturel par jour (Gpi³/j)","7,495 millions de tonnes de GNL par année"]

{"sheet":"4. Exemples","index":4,"n_rows":147,"n_cols":39,"rows_kept":147,"cut":false,"hidden":false,"merged":[[28,1,28,4],[28,7,28,10],[25,1,25,10],[25,29,25,38],[28,29,28,32],[28,35,28,38],[25,15,25,24],[28,15,28,18],[28,21,28,24],[61,1,61,10],[64,1,64,4],[64,7,64,10],[61,15,61,24],[64,15,64,18],[64,21,64,24],[97,1,97,10],[100,1,100,4],[100,7,100,10],[97,15,97,24],[100,15,100,18],[100,21,100,24]]}
[]
[null,"Exemples de calcul"]
[]
[]
[null,"Table des matières"]
[null,"1. Projets de production"]
[null,"1.1 Example no 1 : Éolien"]
[null,"1.2 Example no 2 : Solaire PV"]
[null,"1.3 Example no 3 : Solaire PV + Stockage d’énergie"]
[null,"2. Projets de stockage d’énergie"]
[null,"2.1 Example no 1 : Arbitrage énergétique"]
[null,"2.2 Example no 2 : Écrêtement des pointes en Ontario"]
[null,"2.3 Example no 3 : Stockage d'énergie pour la régulation rapide de la fréquence du réseau en Alberta"]
[null,"4. Projets de transport"]
[null,"4.1 Example no 1 : Mise à niveau d'une ligne de transmission d'une installation existante"]
[]
[]
[]
[null,"Projets de production",null,null,null,null,null,null,null,null,null,null,null,null,null,"Projets de stockage d’énergie",null,null,null,null,null,null,null,null,null,null,null,null,null,"Projets d’infrastructure de transport"]
[]
[]
[]
[null,"Exemple no 1 : Éolien",null,null,null,null,null,null,null,null,null,null,null,null,null,"Exemple no 1 : Arbitrage énergétique Nouvelle-Écosse",null,null,null,null,null,null,null,null,null,null,null,null,null,"Exemple no 1 : Mise à niveau d'une ligne de transmission d'une installation existante"]
[]
[null,"Description :",null,null,null,null,null,null,null,null,null,null,null,null,null,"Description :",null,null,null,null,null,null,null,null,null,null,null,null,null,"Description :"]
[null,"Cet exemple quantifie les réductions annuelles de GES attendues d’un nouveau parc éolien en Alberta.",null,null,null,null,null,null,null,null,null,null,null,null,null,"Dans cet exemple, un système de stockage d'énergie est utilisé pour l’arbitrage énergétique en Nouvelle-Écosse.",null,null,null,null,null,null,null,null,null,null,null,null,null,"Dans cet exemple, une installation industrielle existante utilise actuellement une ligne de distribution pour fournir 40 000 MWh par an. Sa demande annuelle en énergie devrait augmenter de 500 000 MWh en 2028, pour un total de 540 000 MWh. Son exploitation prendra fin en 2043.\n\nLe projet propose de démanteler la ligne de distribution existante et de construire une nouvelle ligne de transmission pour la remplacer et répondre à la demande énergétique actuelle et prévue. Sans cette ligne de transmission proposée, l'installation utiliserait des générateurs diesel pour répondre à la demande accrue."]
[]
[]
[null,"Projet",null,null,null,null,null,"Référence",null,null,null,null,null,null,null,"Projet",null,null,null,null,null,"Référence",null,null,null,null,null,null,null,"Projet",null,null,null,null,null,"Référence"]
[]
[]
[null,"Veuillez sélectionner la composante dans la liste déroulante ci-dessous :",null,null,null,null,null,"Veuillez sélectionner la composante dans la liste déroulante ci-dessous :",null,null,null,null,null,null,null,"Veuillez sélectionner la composante dans la liste déroulante ci-dessous :",null,null,null,null,null,"Veuillez sélectionner la composante dans la liste déroulante ci-dessous :",null,null,null,null,null,null,null,"Veuillez sélectionner la composante dans la liste déroulante ci-dessous :",null,null,null,null,null,"Veuillez sélectionner la composante dans la liste déroulante ci-dessous :"]
[null,"NOUVELLE installation de production en bloc",null,"Type de réduction/remplacement :","Directes",null,null,"Installation de production en bloc EXISTANTE",null,"Type de réduction/remplacement :","Directes",null,null,null,null,"NOUVELLE installation de stockage d’énergie",null,"Type de réduction/remplacement :","Directes",null,null,"Installation de production en bloc EXISTANTE",null,"Type de réduction/remplacement :","Directes",null,null,null,null,"NOUVELLE infrastructure de transport",null,"Type de réduction/remplacement :","Indirectes",null,null,"Autre",null,"Type de réduction/remplacement :","Indirectes"]
[null,"P.1.",null,null,null,null,null,"R.1.",null,null,null,null,null,null,null,"P.6.",null,null,null,null,null,"R.1.",null,null,null,null,null,null,null,"P.2.",null,null,null,null,null,"R.7."]
[]
[null,"Parameter","Value","Unit","Notes",null,null,"Parameter","Value","Unit","Notes",null,null,null,null,"Parameter","Value","Unit","Notes",null,null,"Parameter","Value","Unit","Notes",null,null,null,null,"Parameter","Value","Unit","Notes",null,null,"Parameter","Value","Unit","Notes"]
[null,"Quantité d’électricité produite par la nouvelle éolienne",84000000,"kWh/année","Facteur de capacité de 37,5 %",null,null,"Quantité d’électricité produite par la nouvelle éolienne",84000000,"kWh/année","*En supposant que la nouvelle production d’électricité remplacera un volume équivalent de production au gaz naturel comme ressource marginale.",null,null,null,null,"Capacité énergétique des batteries",250,"MWh",null,null,null,"Efficacité aller-retour",90,"%",null,null,null,null,null,"Quantité d'électricité consommée sur le réseau du Yukon via une nouvelle ligne de transmission",540000000,"kWh/année",null,null,null,"Quantité d'électricité consommée à partir du réseau du Yukon via la ligne de distribution existante",40000000,"kWh/année"]
[null,"Conversion de l’unité",{"$f":"C37/1000","v":84000},"MWh/année",null,null,null,"Conversion de l’unité",{"$f":"I37/1000","v":84000},"MWh/année",null,null,null,null,null,"Durée de stockage dans des batteries",4,"heures",null,null,null,"Électricité remplacée par la décharge des batteries",22500,"MWh/année",null,null,null,null,null,"Conversion de l'unité",{"$f":"AE37/1000","v":540000},"MWh/année",null,null,null,"Conversion d'unités",{"$f":"AK37/1000","v":40000},"MWh/année"]
[null,null,null,null,null,null,null,null,null,null,null,null,null,null,null,"Cycles prévus par année",100,"cycles/année"]
[null,null,null,null,null,null,null,null,null,null,null,null,null,null,null,"Capacité de stockage globale par année",{"$f":"Q37*Q39","v":25000},"MWh/année"]
[]
[]
[null,"*Ajouter des paramètres au besoin",null,null,null,null,null,"*Ajouter des paramètres au besoin",null,null,null,null,null,null,null,"*Ajouter des paramètres au besoin",null,null,null,null,null,"*Ajouter des paramètres au besoin",null,null,null,null,null,null,null,"*Ajouter des paramètres au besoin",null,null,null,null,null,"*Ajouter des paramètres au besoin"]
[null,null,null,null,"Description du FE",null,null,null,null,null,"Description du FE",null,null,null,null,null,null,null,"Description du FE",null,null,null,null,null,"Description du FE",null,null,null,null,null,null,null,"Description du FE",null,null,null,null,null,"Description du FE"]
[null,"Facteur d’émission (FE)",1.2E-2,"téq CO2/MWh","Facteur d’émission sur le cycle de vie pour les projets d’éolienne terrestre",null,null,"Facteur d’émission (FE)",0.39850000000000002,"téq CO2/MWh","Facteur d’émission sur le cycle de vie pour le gaz naturel (non précisé)",null,null,null,null,"Facteur d’émission (FE)",{"$f":"AVERAGE('3. Données'!D38:N38)","v":0.21112727272727272},"téq CO2/MWh","Facteur d'intensité moyen du réseau pour la Nouvelle-Écosse sur la durée de vie du système (2026-2036). Il s'agit d'une estimation prudente, car la batterie est chargée pendant les périodes de faible demande, lorsque l'intensité réelle des émissions du réseau est susceptible d'être plus faible.",null,null,"Facteur d’émission (FE)",0.39850000000000002,"téq CO2/MWh","Facteur d'émission du cycle de vie pour le gaz naturel (non spécifié), en supposant que l'électricité dans la batterie remplacera une quantité équivalente d'électricité produite par le gaz naturel, en tant que ressource marginale pendant les périodes de pointe.",null,null,null,null,"Facteur d’émission (FE)",{"$f":"AVERAGE('3. Données'!F44:U44)","v":3.9306250000000001E-2},"téq CO2/MWh","Facteur d'émission de 2028 à 2043 au Yukon.",null,null,"Facteur d’émission (FE)",{"$f":"AVERAGE('3. Données'!F44:U44)","v":3.9306250000000001E-2},"téq CO2/MWh","Facteur d'émission de 2028 à 2043 au Yukon."]
[]
[null,"Émissions (annuelles)",{"$f":"C38*C45","v":1008},"téq CO2/année",null,null,null,"Émissions (annuelles)",{"$f":"I38*I45","v":33474},"téq CO2/année",null,null,null,null,null,"Émissions (annuelles)",{"$f":"Q45*Q40","v":5278.181818181818},"téq CO2/année",null,null,null,"Émissions (annuelles)",{"$f":"W38*W45","v":8966.25},"téq CO2/année",null,null,null,null,null,"Émissions (annuelles)",{"$f":"AE45*AE38","v":21225.375},"téq CO2/année",null,null,null,"Émissions (annuelles)",{"$f":"AK38*AK45","v":1572.25},"téq CO2/année"]
[]
[]
[null,"DIRECTES :",null,null,null,null,null,"DIRECTES :",null,null,null,null,null,null,null,"DIRECTES :",null,null,null,null,null,"DIRECTES :",null,null,null,null,null,null,null,"Veuillez sélectionner la composante dans la liste déroulante ci-dessous :",null,null,null,null,null,"Veuillez sélectionner la composante dans la liste déroulante ci-dessous :"]
[null,"Total des émissions du projet (annuelles) :",{"$f":"SUMIF(E33,\"Directes\",C47)","v":1008},"téq CO2/année",null,null,null,"Total des émissions de référence (annuelles) :",{"$f":"SUMIF(K33,\"Directes\",I47)","v":33474},"téq CO2/année",null,null,null,null,null,"Total des émissions du projet (annuelles) :",{"$f":"Q47","v":5278.181818181818},"téq CO2/année",null,null,null,"Total des émissions de référence (annuelles) :",{"$f":"W47","v":8966.25},"téq CO2/année",null,null,null,null,null,"NOUVELLE infrastructure de transport",null,"Type de réduction/remplacement :","Indirectes",null,null,"Installation de production en bloc EXISTANTE",null,"Type de réduction/remplacement :","Directes"]
[null,null,null,null,null,null,null,null,null,null,null,null,null,null,null,null,null,null,null,null,null,null,null,null,null,null,null,null,null,"P.2.",null,null,null,null,null,"R.7."]
[null,"INDIRECTES :",null,null,null,null,null,"INDIRECTES :",null,null,null,null,null,null,null,"INDIRECTES :",null,null,null,null,null,"INDIRECTES :"]
[null,"Total des émissions du projet (annuelles) :",{"$f":"SUMIF(E33,\"Indirect\",C47)","v":0},"téq CO2/année",null,null,null,"Total des émissions de référence (annuelles) :",{"$f":"SUMIF(K33,\"Indirect\",I47)","v":0},"téq CO2/année",null,null,null,null,null,"Total des émissions du projet (annuelles) :",{"$f":"SUMIF(S33,\"Indirect\",Q47)","v":0},"téq CO2/année",null,null,null,"Total des émissions de référence (annuelles) :",{"$f":"SUMIF(Y33,\"Indirect\",W47)","v":0},"téq CO2/année",null,null,null,null,null,"Parameter","Value","Unit","Notes",null,null,"Parameter","Value","Unit","Notes"]
[null,null,null,null,null,null,null,null,null,null,null,null,null,null,null,null,null,null,null,null,null,null,null,null,null,null,null,null,null,null,null,null,null,null,null,"Quantité d'électricité produite par les générateurs diesel",500000,"MWh/année","Augmentation de la demande d'électricité à partir de 2028"]
[null,null,null,null,null,null,null,null,null,null,null,null,null,null,null,null,null,null,null,null,null,null,null,null,null,null,null,null,null,null,null,null,null,null,null,"Conversion d'unités",{"$f":"AK55*1000","v":500000000},"kWh/année","Converti en kWh/an. 1 MWh = 1000 kWh"]
[null,null,null,null,null,null,null,null,null,null,null,null,null,null,null,null,null,null,null,null,null,null,null,null,null,null,null,null,null,null,null,null,null,null,null,"Conversion d'unités",{"$f":"AK56*0.4","v":200000000},"L/année","Converti en L/an. Supposant 1 kWh pour 0,4 L de diesel"]
[null,null,null,null,null,null,null,null,null,null,null,null,null,null,null,null,null,null,null,null,null,null,null,null,null,null,null,null,null,null,null,null,null,null,null,"Facteur d'émission pour le mazout léger",{"$f":"'3. Données'!C96","v":2761.3830000000003},"g éq CO2/L","À partir d'autres facteurs d'émission de combustion, fioul léger - industriel ('3. Data'!C96)."]
[null,"Exemple no 2 : Solaire PV",null,null,null,null,null,null,null,null,null,null,null,null,null,"Exemple no 2 : Écrêtement des pointes en Ontario",null,null,null,null,null,null,null,null,null,null,null,null,null,null,null,null,null,null,null,"Conversion d'unités",{"$f":"AK58*10^-6","v":2.7613830000000001E-3},"téq CO2/L","Ce FE est donné en gCO2e/L, il est donc divisé par 10^6 pour être converti en tCO2e/L"]
[]
[null,"Description :",null,null,null,null,null,null,null,null,null,null,null,null,null,"Description :",null,null,null,null,null,null,null,null,null,null,null,null,null,"*Ajouter des paramètres au besoin",null,null,null,null,null,"*Ajouter des paramètres au besoin"]
[null,"Cet exemple quantifie les réductions annuelles de GES attendues d’une nouvelle centrale solaire photovoltaïque en Alberta.",null,null,null,null,null,null,null,null,null,null,null,null,null,"Cet exemple concerne un système de stockage à l’échelle d’un service public pour l’écrêtement des pointes en Ontario de 2026 à 2036.",null,null,null,null,null,null,null,null,null,null,null,null,null,null,null,null,"Description du FE",null,null,null,null,null,"Description du FE"]
[null,null,null,null,null,null,null,null,null,null,null,null,null,null,null,null,null,null,null,null,null,null,null,null,null,null,null,null,null,"Facteur d’émission (FE)",null,"téq CO2/MWh",null,null,null,"Facteur d’émission (FE)",{"$f":"AK59","v":2.7613830000000001E-3},"téq CO2/L","Tel que décrit ci-dessus"]
[]
[null,"Projet",null,null,null,null,null,"Référence",null,null,null,null,null,null,null,"Projet",null,null,null,null,null,"Référence",null,null,null,null,null,null,null,"Émissions (annuelles)",{"$f":"AE60*AE63","v":0},"téq CO2/année",null,null,null,"Émissions (annuelles)",{"$f":"AK63*AK57","v":552276.6},"téq CO2/année"]
[]
[]
[null,"Veuillez sélectionner la composante dans la liste déroulante ci-dessous :",null,null,null,null,null,"Veuillez sélectionner la composante dans la liste déroulante ci-dessous :",null,null,null,null,null,null,null,"Veuillez sélectionner la composante dans la liste déroulante ci-dessous :",null,null,null,null,null,"Veuillez sélectionner la composante dans la liste déroulante ci-dessous :",null,null,null,null,null,null,null,"DIRECTES :",null,null,null,null,null,"DIRECTES :"]
[null,"NOUVELLE installation de production en bloc",null,"Type de réduction/remplacement :","Directes",null,null,"Installation de production en bloc EXISTANTE",null,"Type de réduction/remplacement :","Directes",null,null,null,null,"NOUVELLE installation de stockage d’énergie",null,"Type de réduction/remplacement :","Directes",null,null,"Installation de production en bloc EXISTANTE",null,"Type de réduction/remplacement :","Directes",null,null,null,null,"Total des émissions du projet (annuelles) :",{"$f":"SUMIF(AG51,\"Direct\",AE65)","v":0},"téq CO2/année",null,null,null,"Total des émissions de référence (annuelles) :",{"$f":"SUMIF(AM51,\"Directes\",AK65)","v":552276.6},"téq CO2/année"]
[null,"P.1.",null,null,null,null,null,"R.1.",null,null,null,null,null,null,null,"P.6.",null,null,null,null,null,"R.1."]
[null,null,null,null,null,null,null,null,null,null,null,null,null,null,null,null,null,null,null,null,null,null,null,null,null,null,null,null,null,"INDIRECTES :",null,null,null,null,null,"INDIRECTES :"]
[null,"Parameter","Value","Unit","Notes",null,null,"Parameter","Value","Unit","Notes",null,null,null,null,"Parameter","Value","Unit","Notes",null,null,"Parameter","Value","Unit","Notes",null,null,null,null,"Total des émissions du projet (annuelles) :",{"$f":"AE47","v":21225.375},"téq CO2/année",null,null,null,"Total des émissions de référence (annuelles) :",{"$f":"SUMIF(AM33,\"Indirectes\",AK47)","v":1572.25},"téq CO2/année"]
[null,"Quantité d’électricité produite par la nouvelle centrale solaire",25000000,"kWh/année","Facteur de capacité de 37,5 %",null,null,"Quantité d’électricité produite par la nouvelle centrale solaire",25000000,"kWh/année","*En supposant que la nouvelle production d’électricité remplacera un volume équivalent de production au gaz naturel comme ressource marginale.",null,null,null,null,"Capacité énergétique de la batterie",800,"MWh",null,null,null,"Efficacité aller-retour",86,"%"]
[null,"Conversion de l’unité",{"$f":"C73/1000","v":25000},"MWh/année",null,null,null,"Conversion de l’unité",{"$f":"I73/1000","v":25000},"MWh/année",null,null,null,null,null,"Durée de stockage dans des batteries",4,"heures",null,null,null,"Électricité remplacée par la décharge des batteries",{"$f":"Q78*W73/100","v":184946.2365591398},"MWh/année","*En supposant que l’électricité stockée dans les batteries remplace une quantité équivalente d’électricité produite au gaz naturel comme ressource marginale pendant les périodes de pointe."]
[null,null,null,null,null,null,null,null,null,null,null,null,null,null,null,"Cycles prévus par année",250,"cycles/année"]
[null,null,null,null,null,null,null,null,null,null,null,null,null,null,null,"Capacité de stockage globale par année",{"$f":"Q73*Q75","v":200000},"MWh/année"]
[null,null,null,null,null,null,null,null,null,null,null,null,null,null,null,"Efficacité de charge",93,"%"]
[null,null,null,null,null,null,null,null,null,null,null,null,null,null,null,"Électricité consommée pour la charge des batteries",{"$f":"Q76/Q77*100","v":215053.7634408602},"MWh/année"]
[null,"*Ajouter des paramètres au besoin",null,null,null,null,null,"*Ajouter des paramètres au besoin",null,null,null,null,null,null,null,"*Ajouter des paramètres au besoin",null,null,null,null,null,"*Ajouter des paramètres au besoin"]
[null,null,null,null,"Description du FE",null,null,null,null,null,"Description du FE",null,null,null,null,null,null,null,"Description du FE",null,null,null,null,null,"Description du FE"]
[null,"Facteur d’émission (FE)",{"$f":"'3. Données'!C54","v":4.8890000000000003E-2},"téq CO2/MWh","Facteur d’émission sur le cycle de vie pour les projets d’éolienne terrestre",null,null,"Facteur d’émission (FE)",0.39850000000000002,"téq CO2/MWh","Facteur d’émission sur le cycle de vie pour le gaz naturel (non précisé)",null,null,null,null,"Facteur d’émission (FE)",{"$f":"AVERAGE('3. Données'!D40:N40)","v":5.6218181818181813E-2},"téq CO2/MWh","Facteur d'intensité moyen du réseau pour l'Ontario sur la durée de vie du BESS (2026-2036). Il s'agit d'une estimation prudente, car la batterie est chargée pendant les périodes de faible demande, lorsque l'intensité réelle des émissions du réseau est susceptible d'être plus faible.",null,null,"Facteur d’émission (FE)",0.39850000000000002,"téq CO2/MWh","Facteur d’émission sur le cycle de vie pour le gaz naturel (non précisé)"]
[]
[null,"Émissions (annuelles)",{"$f":"C74*C81","v":1222.25},"téq CO2/année",null,null,null,"Émissions (annuelles)",{"$f":"I74*I81","v":9962.5},"téq CO2/année",null,null,null,null,null,"Émissions (annuelles)",{"$f":"Q78*Q81","v":12089.93157380254},"téq CO2/année",null,null,null,"Émissions (annuelles)",{"$f":"W74*W81","v":73701.075268817207},"téq CO2/année"]
[]
[]
[null,"DIRECTES :",null,null,null,null,null,"DIRECTES :",null,null,null,null,null,null,null,"DIRECTES :",null,null,null,null,null,"DIRECTES :"]
[null,"Total des émissions du projet (annuelles) :",{"$f":"SUMIF(E69,\"Directes\",C83)","v":1222.25},"téq CO2/année",null,null,null,"Total des émissions de référence (annuelles) :",{"$f":"SUMIF(K69,\"Directes\",I83)","v":9962.5},"téq CO2/année",null,null,null,null,null,"Total des émissions du projet (annuelles) :",{"$f":"Q83","v":12089.93157380254},"téq CO2/année",null,null,null,"Total des émissions de référence (annuelles) :",{"$f":"W83","v":73701.075268817207},"téq CO2/année"]
[]
[null,"INDIRECTES :",null,null,null,null,null,"INDIRECTES :",null,null,null,null,null,null,null,"INDIRECTES :",null,null,null,null,null,"INDIRECTES :"]
[null,"Total des émissions du projet (annuelles) :",{"$f":"SUMIF(E69,\"Indirect\",C83)","v":0},"téq CO2/année",null,null,null,"Total des émissions de référence (annuelles) :",{"$f":"SUMIF(K69,\"Indirect\",I83)","v":0},"téq CO2/année",null,null,null,null,null,"Total des émissions du projet (annuelles) :",{"$f":"SUMIF(S69,\"Indirect\",Q83)","v":0},"téq CO2/année",null,null,null,"Total des émissions de référence (annuelles) :",{"$f":"SUMIF(Y69,\"Indirect\",W83)","v":0},"téq CO2/année"]
[]
[]
[]
[]
[null,"Exemple no 3 : Solaire PV + Stockage d’énergie",null,null,null,null,null,null,null,null,null,null,null,null,null,"Exemple no 3 : Stockage d'énergie pour la régulation rapide de la fréquence du réseau en Alberta"]
[]
[null,"Description :",null,null,null,null,null,null,null,null,null,null,null,null,null,"Description :"]
[null,"Cet exemple quantifie les réductions annuelles des émissions de GES d’une ferme solaire + système de stockage d’énergie par batterie en Alberta.",null,null,null,null,null,null,null,null,null,null,null,null,null,"Une batterie en Alberta est utilisée pour la régulation rapide de la fréquence du réseau."]
[]
[]
[null,"Projet",null,null,null,null,null,"Référence",null,null,null,null,null,null,null,"Projet",null,null,null,null,null,"Référence"]
[]
[]
[null,"Veuillez sélectionner la composante dans la liste déroulante ci-dessous :",null,null,null,null,null,"Veuillez sélectionner la composante dans la liste déroulante ci-dessous :",null,null,null,null,null,null,null,"Veuillez sélectionner la composante dans la liste déroulante ci-dessous :",null,null,null,null,null,"Veuillez sélectionner la composante dans la liste déroulante ci-dessous :"]
[null,"NOUVELLE installation de production en bloc",null,"Type de réduction/remplacement :","Directes",null,null,"Installation de production en bloc EXISTANTE",null,"Type de réduction/remplacement :","Directes",null,null,null,null,"NOUVELLE installation de stockage d’énergie",null,"Type de réduction/remplacement :","Directes",null,null,"Installation de production en bloc EXISTANTE",null,"Type de réduction/remplacement :","Directes"]
[null,"P.1.",null,null,null,null,null,"R.1.",null,null,null,null,null,null,null,"P.6.",null,null,null,null,null,"R.1."]
[]
[null,"Parameter","Value","Unit","Notes",null,null,"Parameter","Value","Unit","Notes",null,null,null,null,"Parameter","Value","Unit","Notes",null,null,"Parameter","Value","Unit","Notes"]
[null,"Quantité d'électricité produite par la nouvelle centrale solaire",25000000,"kWh/année","Facteur de capacité  20%",null,null,"Quantité d’électricité produite par la nouvelle éolienne",25000000,"kWh/année","*En supposant que la nouvelle production d’électricité remplacera un volume équivalent de production au gaz naturel comme ressource marginale.",null,null,null,null,"Capacité énergétique des batteries",120,"MWh",null,null,null,"Efficacité aller-retour",88,"%"]
[null,"Unit conversion",{"$f":"C109/1000","v":25000},"MWh/année",null,null,null,"Conversion de l’unité",{"$f":"I109/1000","v":25000},"MWh/année",null,null,null,null,null,"Durée de stockage dans des batteries",4,"heures",null,null,null,"Électricité remplacée par la décharge des batteries",{"$f":"Q114*(W109/100)","v":56774.193548387091},"MWh/année"]
[null,null,null,null,null,null,null,null,null,null,null,null,null,null,null,"Cycles prévus par année",500,"cycles/année"]
[null,null,null,null,null,null,null,null,null,null,null,null,null,null,null,"Capacité de stockage par année",60000,"MWh/année"]
[null,null,null,null,null,null,null,null,null,null,null,null,null,null,null,"Efficacité de charge",93,"%"]
[null,null,null,null,null,null,null,null,null,null,null,null,null,null,null,"Électricité consommée pour la charge des batteries",{"$f":"Q112/Q113*100","v":64516.129032258061},"MWh/année"]
[null,"*Ajouter des paramètres au besoin",null,null,null,null,null,"*Ajouter des paramètres au besoin",null,null,null,null,null,null,null,"*Ajouter des paramètres au besoin",null,null,null,null,null,"*Ajouter des paramètres au besoin"]
[null,null,null,null,"Description du FE",null,null,null,null,null,"Description du FE",null,null,null,null,null,null,null,"Description du FE",null,null,null,null,null,"Description du FE"]
[null,"Facteur d’émission (FE)",{"$f":"'3. Données'!C54","v":4.8890000000000003E-2},"téq CO2/MWh","Facteur d’émission sur le cycle de vie pour les projets d’éolienne terrestre",null,null,"Facteur d’émission (FE)",0.39850000000000002,"téq CO2/MWh","Facteur d’émission sur le cycle de vie pour le gaz naturel (non précisé)",null,null,null,null,"Facteur d’émission (FE)",{"$f":"AVERAGE('3. Données'!H32:R32)","v":0.12099090909090909},"téq CO2/MWh","Facteur d'émission de 2030 à 2040 en Alberta.",null,null,"Facteur d’émission (FE)",0.39850000000000002,"téq CO2/MWh","Facteur d'émission du cycle de vie pour le gaz naturel (non spécifié), en supposant que l'électricité dans la batterie remplacera une quantité équivalente d'électricité produite par le gaz naturel, comme ressource FFR. Ce chiffre pourrait diminuer à mesure que davantage de ressources énergétiques à faible teneur en carbone capables de FFR seront mises en service - cette évolution est reflétée dans l'onglet 6."]
[]
[null,"Émissions (annuelles)",{"$f":"C110*C117","v":1222.25},"téq CO2/année",null,null,null,"Émissions (annuelles)",{"$f":"I110*I117","v":9962.5},"téq CO2/année",null,null,null,null,null,"Émissions (annuelles)",{"$f":"Q114*Q117","v":7805.8651026392963},"téq CO2/année",null,null,null,"Émissions (annuelles)",{"$f":"W110*W117","v":22624.516129032258},"téq CO2/année"]
[]
[]
[null,"Veuillez sélectionner la composante dans la liste déroulante ci-dessous :",null,null,null,null,null,"Veuillez sélectionner la composante dans la liste déroulante ci-dessous :",null,null,null,null,null,null,null,"DIRECTES :",null,null,null,null,null,"DIRECTES :"]
[null,"NOUVELLE installation de stockage d’énergie",null,"Type de réduction/remplacement :","Directes",null,null,"Installation de production en bloc EXISTANTE",null,"Type de réduction/remplacement :","Directes",null,null,null,null,"Total des émissions du projet (annuelles) :",{"$f":"SUMIF(S105,\"Direct\",Q119)","v":0},"téq CO2/année",null,null,null,"Total des émissions de référence (annuelles) :",{"$f":"SUMIF(Y105,\"Direct\",W119)","v":0},"téq CO2/année"]
[null,"P.1.",null,null,null,null,null,"R.1."]
[null,null,null,null,null,null,null,null,null,null,null,null,null,null,null,"INDIRECTES :",null,null,null,null,null,"INDIRECTES :"]
[null,"Parameter","Value","Unit","Notes",null,null,"Parameter","Value","Unit","Notes",null,null,null,null,"Total des émissions du projet (annuelles) :",{"$f":"SUMIF(S105,\"Indirect\",Q119)","v":0},"téq CO2/année",null,null,null,"Total des émissions de référence (annuelles) :",{"$f":"SUMIF(Y105,\"Indirect\",W119)","v":0},"téq CO2/année"]
[null,"Production écrêtée par an",1000000,"kWh/année","D'après le modèle économique du projet",null,null,"Électricité consommée pour la recharge",{"$f":"SUM(C127:C129)","v":4500000},"kWh/année","*En supposant que la nouvelle production d’électricité remplacera un volume équivalent de production au gaz naturel comme ressource marginale."]
[null,"Arbitrage solaire par an",2000000,"kWh/année","D'après le modèle économique du projet",null,null,"Conversion de l’unité",{"$f":"I127/1000","v":4500},"MWh/année"]
[null,"Arbitrage réseau par an",1500000,"kWh/année","D'après le modèle économique du projet",null,null,"Efficacité aller-retour",90,"%"]
[null,"Facteur d'émission de production écrêtée (solaire)",{"$f":"'3. Données'!C54","v":4.8890000000000003E-2},"téq CO2/MWh","Facteur d'émission du cycle de vie pour le solaire photovoltaïque selon le NREL",null,null,"Électricité déplacée par le système de stockage",{"$f":"I128*I129/100","v":4050},"MWh/année"]
[null,"Facteur d'émission d'arbitrage solaire",{"$f":"'3. Données'!C69","v":0.45},"téq CO2/MWh","L'énergie solaire est stockée pendant les périodes de bas prix. Elle remplace l'énergie du réseau qui serait autrement stockée pour l'arbitrage du réseau. L'intensité des émissions pendant ces périodes varie mais repose en grande partie sur la production à cycle combiné au gaz naturel, qui est le facteur utilisé ici."]
[null,"Facteur d'émission d'arbitrage réseau",{"$f":"'3. Données'!C69","v":0.45},"téq CO2/MWh","Comme ci-dessus, l'intensité des émissions pendant les périodes de bas prix varie mais repose en grande partie sur la production à cycle combiné au gaz naturel à la marge, qui est l'EF utilisé ici. Il s'agit d'une hypothèse prudente car elle ne prend pas en compte la production éolienne qui peut également faire partie du mix de ressources marginales pendant les périodes de faible demande."]
[null,"Facteur d'émission moyen pondéré",{"$f":"(C130*C127+C131*C128+C132*C129)/(C127+C128+C129)","v":0.36086444444444443},"téq CO2/MWh"]
[null,"Électricité consommée pour la recharge",{"$f":"C127+C128+C129","v":4500000},"kWh/année"]
[null,"Conversion d'unités",{"$f":"C134/1000","v":4500},"MWh/année"]
[null,"*Ajouter des paramètres au besoin",null,null,null,null,null,"*Ajouter des paramètres au besoin"]
[null,null,null,null,"Description du FE",null,null,null,null,null,"Description du FE"]
[null,"Facteur d’émission (FE)",{"$f":"C133","v":0.36086444444444443},"téq CO2/MWh","Facteur d'émission moyen pondéré tel que calculé ci-dessus",null,null,"Facteur d’émission (FE)",0.7,"téq CO2/MWh","Le système de stockage libère l'énergie stockée pendant les périodes de pointe de la demande, lorsque l'intensité des émissions est déterminée par les centrales au charbon converties pour utiliser du gaz pour ses chaudières conformément aux perspectives à long terme les plus récentes de l'AESO. Les centrales au charbon converties au gaz fonctionnent avec une efficacité inférieure à celle des centrales au gaz classiques. Les mises hors service prévues des centrales au charbon au gaz sont reflétées dans l'onglet 6. Le facteur d'émission utilisé ici donne une estimation prudente des émissions de référence, car les pertes en ligne ne sont pas prises en compte."]
[]
[null,"Émissions (annuelles)",{"$f":"C135*C133","v":1623.8899999999999},"téq CO2/année",null,null,null,"Émissions (annuelles)",{"$f":"I130*I138","v":2835},"téq CO2/année"]
[]
[]
[null,"DIRECTES :",null,null,null,null,null,"DIRECTES :"]
[null,"Total des émissions du projet (annuelles) :",{"$f":"SUMIF(E123,\"Directes\",C140)+SUMIF(E105,\"Directes\",C119)","v":2846.14},"téq CO2/année",null,null,null,"Total des émissions de référence (annuelles) :",{"$f":"SUMIF(K123,\"Directes\",I140)+SUMIF(K105,\"Directes\",I119)","v":12797.5},"téq CO2/année"]
[]
[null,"INDIRECTES :",null,null,null,null,null,"INDIRECTES :"]
[null,"Total des émissions du projet (annuelles) :",{"$f":"SUMIF(E123,\"Indirect\",C140)","v":0},"téq CO2/année",null,null,null,"Total des émissions de référence (annuelles) :",{"$f":"SUMIF(K123,\"Indirect\",I140)","v":0},"téq CO2/année"]

{"sheet":"5. Calculs","index":5,"n_rows":91,"n_cols":45,"rows_kept":91,"cut":false,"hidden":false,"merged":[[26,1,26,4],[26,7,26,10],[6,2,6,3],[7,2,7,3],[12,1,14,4],[19,1,21,4],[45,2,45,3],[45,8,45,9],[63,2,63,3],[63,8,63,9],[81,2,81,3],[81,8,81,9]]}
[]
[null,"Bilan GES"]
[]
[]
[null,"DOCUMENTS DE RÉFÉRENCE"]
[]
[null,"1. CSA ISO 14064-2:20","Spécifications et lignes directrices, à l’échelle des projets, pour la quantification, la surveillance et la déclaration des réductions d’émissions ou d’amélioration de l’élimination des gaz à effet de serre."]
[null,"2. The GHG Protocol for Project Accounting (Protocole de comptabilisation des GES pour les projets)","Le protocole de comptabilisation des GES pour les projets fournit des principes, des concepts et des méthodes spécifiques pour quantifier et déclarer les réductions de GES résultant de projets d’atténuation des changements climatiques."]
[]
[]
[null,"Lignes directrices :"]
[]
[null,"ÉTAPE 1. Dans le modèle de projet, sélectionner une composante dans la liste déroulante.\n\nÉTAPE 2. Remplir le tableau en précisant le paramètre, la valeur et l’unité, et en insérant des notes, le cas échéant. Veuillez vous reporter aux exemples de la feuille « 4. Exemples » pour savoir comment remplir le tableau.\n\n*Veuillez noter que si vous souhaitez utiliser des « estimations de production d’électricité variable » (enregistrées dans la feuille « 2. Détermination de la portée »), vous devez passer à l’ÉTAPE 3.\n\nÉTAPE 3. Sélectionner un facteur d’émission de la feuille « 3. Données » et préciser ses unités. Veuillez décrire le facteur d’émission dans le champ « Description du FE ».\n\n*Veuillez noter que si vous souhaitez utiliser les « facteurs d’intensité moyens du réseau » (enregistrés dans les cellules C32 - AB44 dans la feuille « 3. Données »), vous devez cliquer sur le bouton 1. (« 1. Utiliser les facteurs d’intensité moyens du réseau »). Il importe de noter que les résultats de ce calcul s’afficheront dans la feuille « 6. Résumé ».\n\n*Si vous avez saisi des « estimations de production d’électricité variable » dans la feuille « 2. Détermination de la portée » et souhaitez utiliser ces valeurs dans vos calculs, assurez-vous d’avoir sélectionné un facteur d’émission et cliquez sur le bouton 2. (« 2. Utiliser des estimations de production d’électricité variable »). Il importe de noter que les résultats de ce calcul s’afficheront dans la feuille « 6. Résumé ».\n\n*Si vous souhaitez utiliser des « facteurs d’intensité moyens du réseau » ET des « estimations de production d’électricité variable », veuillez cliquer sur le bouton 3. (« 3. Utiliser les deux »). Ce bouton permet d’utiliser les « facteurs d’intensité moyens du réseau » de la feuille « 3. Données » et les valeurs que vous avez saisies dans les cellules C66 - C91 de la feuille « 2. « Détermination de la portée » pour calculer les émissions annuelles [réductions/remplacements] pour chaque année d’exploitation. Il importe de noter que les résultats de ce calcul s’afficheront dans la feuille « 6. Résumé ».\n\nÉTAPE 4. Écrire une formule pour calculer les émissions annuelles liées au projet en utilisant le facteur d’émission sélectionné et les valeurs enregistrées dans le tableau. Le résultat DOIT être exprimé en téq CO2/année.\n\nÉTAPE 5. Répéter les ÉTAPES 1. à 4. pour le scénario de référence dans le modèle de référence.\n\nÉTAPE 6. Si le projet comporte plus d’une composante, veuillez répéter les ÉTAPES 1. à 5. à l’aide des tableaux du modèle."]
[]
[]
[]
[]
[null,"Remarques :"]
[]
[null,"- Si vous avez besoin de tableaux supplémentaires, veuillez envoyer un courriel au programme : cmif-fimc@nrcan-rncan.gc.ca.\n\n- Veuillez consulter les exemples de calculs figurant dans la feuille précédente avant de remplir les tableaux ci-dessous."]
[]
[]
[]
[]
[]
[]
[null,"Projet",null,null,null,null,null,"Référence"]
[]
[null,null,null,null,null,null,null,null,null,null,null,null,null,null,null,"Facteurs d’intensité moyens du réseau OU Estimations de production d’électricité variable",null,null,null,null,null,null,null,null,null,null,null,null,null,null,null,null,null,null,null,null,null,null,null,"Total"]
[null,"Veuillez sélectionner la composante dans la liste déroulante ci-dessous :",null,null,null,null,null,"Veuillez sélectionner la composante dans la liste déroulante ci-dessous :"]
[null,"NOUVELLE installation de production en bloc",null,"Type de réduction/remplacement :",{"$f":"IF(VLOOKUP(B31,Table5[[Catégorie de composante]:[Type d’émissions de GES '[Liste déroulante']]],4,FALSE)=0,\"\",VLOOKUP(B31,Table5[[Catégorie de composante]:[Type d’émissions de GES '[Liste déroulante']]],4,FALSE))","v":""},null,null,"Installation de production en bloc EXISTANTE",null,"Type de réduction/remplacement :",{"$f":"IF(VLOOKUP(H31,Table12[[Catégorie de composante]:[Type de réduction/remplacement des émissions de GES '[Liste déroulante']]],4,FALSE)=0,\"\",VLOOKUP(H31,Table12[[Catégorie de composante]:[Type de réduction/remplacement des émissions de GES '[Liste déroulante']]],4,FALSE))","v":"Directes"},null,null,null,null,{"$f":"B31","v":"NOUVELLE installation de production en bloc"},{"$f":"B32","v":"P.1."},null,null,{"$f":"$H$31","v":"Installation de production en bloc EXISTANTE"},{"$f":"$H$32","v":"R.1."},null,null,{"$f":"$B$49","v":"NOUVELLE infrastructure de transport"},{"$f":"$B$50","v":"P.2."},null,null,{"$f":"$H$49","v":"Installation de production en bloc EXISTANTE"},{"$f":"$H$50","v":"R.1."},null,null,{"$f":"$B$67","v":"NOUVELLE installation de production en bloc"},{"$f":"$B$68","v":"P.1."},null,null,{"$f":"$H$67","v":"Installation de production en bloc EXISTANTE"},{"$f":"$H$68","v":"R.1."},null,null,"Total - Directes",null,null,null,"Total - Directes"]
[null,{"$f":"INDEX(Table5[Index des composantes],MATCH(B31,Table5[Catégorie de composante],0))","v":"P.1."},null,null,null,null,null,{"$f":"INDEX(Table12[Index des composantes],MATCH(H31,Table12[Catégorie de composante],0))","v":"R.1."},null,null,null,null,null,null,null,{"$f":"E31","v":""},null,null,null,{"$f":"$K$31","v":"Directes"},null,null,null,{"$f":"$E$49","v":""},null,null,null,{"$f":"$K$49","v":"Directes"},null,null,null,{"$f":"$E$67","v":""},null,null,null,{"$f":"$K$67","v":"Directes"}]
[null,null,null,null,null,null,null,null,null,null,null,null,null,null,null,"Tableau des émissions du projet",null,null,null,"Tableau des émissions de référence",null,null,null,"Tableau des émissions du projet",null,null,null,"Tableau des émissions de référence",null,null,null,"Tableau des émissions du projet",null,null,null,"Tableau des émissions de référence",null,null,null,"Tableau des émissions du projet",null,null,null,"Tableau des émissions de référence"]
[null,"Parameter","Value","Unit","Notes",null,null,"Parameter","Value","Unit","Notes",null,null,null,null,null,"téq CO2/année",null,null,null,"téq CO2/année",null,null,null,"téq CO2/année",null,null,null,"téq CO2/année",null,null,null,"téq CO2/année",null,null,null,"téq CO2/année",null,null,{"$f":"IF($P$32=\"Direct\",P34,0)+IF($X$32=\"Direct\",X34,0)+IF($AF$32=\"Direct\",AF34)","v":0},"téq CO2/année",null,null,{"$f":"IF($T$32=\"Direct\",T34,0)+IF($AB$32=\"Direct\",AB34,0)+IF($AJ$32=\"Direct\",AJ34,0)","v":0},"téq CO2/année"]
[null,null,null,null,null,null,null,null,null,null,null,null,null,null,null,null,"téq CO2/année",null,null,null,"téq CO2/année",null,null,null,"téq CO2/année",null,null,null,"téq CO2/année",null,null,null,"téq CO2/année",null,null,null,"téq CO2/année",null,null,0,"téq CO2/année",null,null,0,"téq CO2/année"]
[null,null,null,null,null,null,null,null,null,null,null,null,null,null,null,null,"téq CO2/année",null,null,null,"téq CO2/année",null,null,null,"téq CO2/année",null,null,null,"téq CO2/année",null,null,null,"téq CO2/année",null,null,null,"téq CO2/année",null,null,0,"téq CO2/année",null,null,0,"téq CO2/année"]
[null,null,null,null,null,null,null,null,null,null,null,null,null,null,null,null,"téq CO2/année",null,null,null,"téq CO2/année",null,null,null,"téq CO2/année",null,null,null,"téq CO2/année",null,null,null,"téq CO2/année",null,null,null,"téq CO2/année",null,null,0,"téq CO2/année",null,null,0,"téq CO2/année"]
[null,null,null,null,null,null,null,null,null,null,null,null,null,null,null,null,"téq CO2/année",null,null,null,"téq CO2/année",null,null,null,"téq CO2/année",null,null,null,"téq CO2/année",null,null,null,"téq CO2/année",null,null,null,"téq CO2/année",null,null,0,"téq CO2/année",null,null,0,"téq CO2/année"]
[null,null,null,null,null,null,null,null,null,null,null,null,null,null,null,null,"téq CO2/année",null,null,null,"téq CO2/année",null,null,null,"téq CO2/année",null,null,null,"téq CO2/année",null,null,null,"téq CO2/année",null,null,null,"téq CO2/année",null,null,0,"téq CO2/année",null,null,0,"téq CO2/année"]
[null,null,null,null,null,null,null,null,null,null,null,null,null,null,null,null,"téq CO2/année",null,null,null,"téq CO2/année",null,null,null,"téq CO2/année",null,null,null,"téq CO2/année",null,null,null,"téq CO2/année",null,null,null,"téq CO2/année",null,null,0,"téq CO2/année",null,null,0,"téq CO2/année"]
[null,"*Ajouter des paramètres au besoin",null,null,null,null,null,"*Ajouter des paramètres au besoin",null,null,null,null,null,null,null,null,"téq CO2/année",null,null,null,"téq CO2/année",null,null,null,"téq CO2/année",null,null,null,"téq CO2/année",null,null,null,"téq CO2/année",null,null,null,"téq CO2/année",null,null,0,"téq CO2/année",null,null,0,"téq CO2/année"]
[null,null,null,null,"Description du FE",null,null,null,null,null,"Description du FE",null,null,null,null,null,"téq CO2/année",null,null,null,"téq CO2/année",null,null,null,"téq CO2/année",null,null,null,"téq CO2/année",null,null,null,"téq CO2/année",null,null,null,"téq CO2/année",null,null,0,"téq CO2/année",null,null,0,"téq CO2/année"]
[null,"Facteur d’émission (FE)",null,"Veuillez indiquer l’unité ici",null,null,null,"Facteur d’émission (FE)",null,"Veuillez indiquer l’unité ici",null,null,null,null,null,null,"téq CO2/année",null,null,null,"téq CO2/année",null,null,null,"téq CO2/année",null,null,null,"téq CO2/année",null,null,null,"téq CO2/année",null,null,null,"téq CO2/année",null,null,0,"téq CO2/année",null,null,0,"téq CO2/année"]
[null,null,null,null,null,null,null,null,null,null,null,null,null,null,null,null,"téq CO2/année",null,null,null,"téq CO2/année",null,null,null,"téq CO2/année",null,null,null,"téq CO2/année",null,null,null,"téq CO2/année",null,null,null,"téq CO2/année",null,null,0,"téq CO2/année",null,null,0,"téq CO2/année"]
[null,"Émissions (annuelles)",null,"téq CO2/année",null,null,null,"Émissions (annuelles)",null,"téq CO2/année",null,null,null,null,null,null,"téq CO2/année",null,null,null,"téq CO2/année",null,null,null,"téq CO2/année",null,null,null,"téq CO2/année",null,null,null,"téq CO2/année",null,null,null,"téq CO2/année",null,null,0,"téq CO2/année",null,null,0,"téq CO2/année"]
[null,null,{"$f":"IF(OR(COUNT(P34:P59)<>0,COUNT(P66:P91)<>0),\"Effectué à partir des facteurs d'intensité moyenne du réseau, des estimations de production d'électricité variable, ou des deux. Si vous ne souhaitez pas utiliser ces données, cliquez sur le bouton pour effacer les données en bas du formulaire.\",\"\")","v":""},null,null,null,null,null,{"$f":"IF(OR(COUNT(T34:T59)<>0,COUNT(T66:T91)<>0),\"Effectué à partir des facteurs d'intensité moyenne du réseau, des estimations de production d'électricité variable, ou des deux. Si vous ne souhaitez pas utiliser ces données, cliquez sur le bouton pour effacer les données en bas du formulaire.\",\"\")","v":""},null,null,null,null,null,null,null,"téq CO2/année",null,null,null,"téq CO2/année",null,null,null,"téq CO2/année",null,null,null,"téq CO2/année",null,null,null,"téq CO2/année",null,null,null,"téq CO2/année",null,null,0,"téq CO2/année",null,null,0,"téq CO2/année"]
[null,null,null,null,null,null,null,null,null,null,null,null,null,null,null,null,"téq CO2/année",null,null,null,"téq CO2/année",null,null,null,"téq CO2/année",null,null,null,"téq CO2/année",null,null,null,"téq CO2/année",null,null,null,"téq CO2/année",null,null,0,"téq CO2/année",null,null,0,"téq CO2/année"]
[null,"Veuillez sélectionner la composante dans la liste déroulante ci-dessous :",null,null,null,null,null,"Veuillez sélectionner la composante dans la liste déroulante ci-dessous :",null,null,null,null,null,null,null,null,"téq CO2/année",null,null,null,"téq CO2/année",null,null,null,"téq CO2/année",null,null,null,"téq CO2/année",null,null,null,"téq CO2/année",null,null,null,"téq CO2/année",null,null,0,"téq CO2/année",null,null,0,"téq CO2/année"]
[null,"NOUVELLE infrastructure de transport",null,"Type de réduction/remplacement :",{"$f":"IF(VLOOKUP(B49,Table5[[Catégorie de composante]:[Type d’émissions de GES '[Liste déroulante']]],4,FALSE)=0,\"\",VLOOKUP(B49,Table5[[Catégorie de composante]:[Type d’émissions de GES '[Liste déroulante']]],4,FALSE))","v":""},null,null,"Installation de production en bloc EXISTANTE",null,"Type de réduction/remplacement :",{"$f":"IF(VLOOKUP(H49,Table12[[Catégorie de composante]:[Type de réduction/remplacement des émissions de GES '[Liste déroulante']]],4,FALSE)=0,\"\",VLOOKUP(H49,Table12[[Catégorie de composante]:[Type de réduction/remplacement des émissions de GES '[Liste déroulante']]],4,FALSE))","v":"Directes"},null,null,null,null,null,"téq CO2/année",null,null,null,"téq CO2/année",null,null,null,"téq CO2/année",null,null,null,"téq CO2/année",null,null,null,"téq CO2/année",null,null,null,"téq CO2/année",null,null,0,"téq CO2/année",null,null,0,"téq CO2/année"]
[null,{"$f":"INDEX(Table5[Index des composantes],MATCH(B49,Table5[Catégorie de composante],0))","v":"P.2."},null,null,null,null,null,{"$f":"INDEX(Table12[Index des composantes],MATCH(H49,Table12[Catégorie de composante],0))","v":"R.1."},null,null,null,null,null,null,null,null,"téq CO2/année",null,null,null,"téq CO2/année",null,null,null,"téq CO2/année",null,null,null,"téq CO2/année",null,null,null,"téq CO2/année",null,null,null,"téq CO2/année",null,null,0,"téq CO2/année",null,null,0,"téq CO2/année"]
[null,null,null,null,null,null,null,null,null,null,null,null,null,null,null,null,"téq CO2/année",null,null,null,"téq CO2/année",null,null,null,"téq CO2/année",null,null,null,"téq CO2/année",null,null,null,"téq CO2/année",null,null,null,"téq CO2/année",null,null,0,"téq CO2/année",null,null,0,"téq CO2/année"]
[null,"Parameter","Value","Unit","Notes",null,null,"Parameter","Value","Unit","Notes",null,null,null,null,null,"téq CO2/année",null,null,null,"téq CO2/année",null,null,null,"téq CO2/année",null,null,null,"téq CO2/année",null,null,null,"téq CO2/année",null,null,null,"téq CO2/année",null,null,0,"téq CO2/année",null,null,0,"téq CO2/année"]
[null,null,null,null,null,null,null,null,null,null,null,null,null,null,null,null,"téq CO2/année",null,null,null,"téq CO2/année",null,null,null,"téq CO2/année",null,null,null,"téq CO2/année",null,null,null,"téq CO2/année",null,null,null,"téq CO2/année",null,null,0,"téq CO2/année",null,null,0,"téq CO2/année"]
[null,null,null,null,null,null,null,null,null,null,null,null,null,null,null,null,"téq CO2/année",null,null,null,"téq CO2/année",null,null,null,"téq CO2/année",null,null,null,"téq CO2/année",null,null,null,"téq CO2/année",null,null,null,"téq CO2/année",null,null,0,"téq CO2/année",null,null,0,"téq CO2/année"]
[null,null,null,null,null,null,null,null,null,null,null,null,null,null,null,null,"téq CO2/année",null,null,null,"téq CO2/année",null,null,null,"téq CO2/année",null,null,null,"téq CO2/année",null,null,null,"téq CO2/année",null,null,null,"téq CO2/année",null,null,0,"téq CO2/année",null,null,0,"téq CO2/année"]
[null,null,null,null,null,null,null,null,null,null,null,null,null,null,null,null,"téq CO2/année",null,null,null,"téq CO2/année",null,null,null,"téq CO2/année",null,null,null,"téq CO2/année",null,null,null,"téq CO2/année",null,null,null,"téq CO2/année",null,null,0,"téq CO2/année",null,null,0,"téq CO2/année"]
[null,null,null,null,null,null,null,null,null,null,null,null,null,null,null,null,"téq CO2/année",null,null,null,"téq CO2/année",null,null,null,"téq CO2/année",null,null,null,"téq CO2/année",null,null,null,"téq CO2/année",null,null,null,"téq CO2/année",null,null,0,"téq CO2/année",null,null,0,"téq CO2/année"]
[null,null,null,null,null,null,null,null,null,null,null,null,null,null,null,null,"téq CO2/année",null,null,null,"téq CO2/année",null,null,null,"téq CO2/année",null,null,null,"téq CO2/année",null,null,null,"téq CO2/année",null,null,null,"téq CO2/année",null,null,0,"téq CO2/année",null,null,0,"téq CO2/année"]
[null,"*Ajouter des paramètres au besoin",null,null,null,null,null,"*Ajouter des paramètres au besoin",null,null,null,null,null,null,null,null,"téq CO2/année",null,null,null,"téq CO2/année",null,null,null,"téq CO2/année",null,null,null,"téq CO2/année",null,null,null,"téq CO2/année",null,null,null,"téq CO2/année",null,null,0,"téq CO2/année",null,null,0,"téq CO2/année"]
[null,null,null,null,"Description du FE",null,null,null,null,null,"Description du FE"]
[null,"Facteur d’émission (FE)",null,"Veuillez indiquer l’unité ici",null,null,null,"Facteur d’émission (FE)",null,"Veuillez indiquer l’unité ici",null,null,null,null,null,"Facteurs d’intensité moyens du réseau et production d’électricité variable",null,null,null,null,null,null,null,null,null,null,null,null,null,null,null,null,null,null,null,null,null,null,null,"Total"]
[]
[null,"Émissions (annuelles)",null,"téq CO2/année",null,null,null,"Émissions (annuelles)",null,"téq CO2/année",null,null,null,null,null,{"$f":"$B$31","v":"NOUVELLE installation de production en bloc"},{"$f":"$B$32","v":"P.1."},null,null,{"$f":"$H$31","v":"Installation de production en bloc EXISTANTE"},{"$f":"$H$32","v":"R.1."},null,null,{"$f":"$B$49","v":"NOUVELLE infrastructure de transport"},{"$f":"$B$50","v":"P.2."},null,null,{"$f":"$H$49","v":"Installation de production en bloc EXISTANTE"},{"$f":"$H$50","v":"R.1."},null,null,{"$f":"$B$67","v":"NOUVELLE installation de production en bloc"},{"$f":"$B$68","v":"P.1."},null,null,{"$f":"$H$67","v":"Installation de production en bloc EXISTANTE"},{"$f":"$H$68","v":"R.1."},null,null,"Total - Directes",null,null,null,"Total - Directes"]
[null,null,{"$f":"IF(OR(COUNT(X34:X59)<>0,COUNT(X66:X91)<>0),\"Effectué à partir des facteurs d'intensité moyenne du réseau, des estimations de production d'électricité variable, ou des deux. Si vous ne souhaitez pas utiliser ces données, cliquez sur le bouton pour effacer les données en bas du formulaire.\",\"\")","v":""},null,null,null,null,null,{"$f":"IF(OR(COUNT(AB34:AB59)<>0,COUNT(AB66:AB91)<>0),\"Effectué à partir des facteurs d'intensité moyenne du réseau, des estimations de production d'électricité variable, ou des deux. Si vous ne souhaitez pas utiliser ces données, cliquez sur le bouton pour effacer les données en bas du formulaire.\",\"\")","v":""},null,null,null,null,null,null,{"$f":"$E$31","v":""},null,null,null,{"$f":"$K$31","v":"Directes"},null,null,null,{"$f":"$E$49","v":""},null,null,null,{"$f":"$K$49","v":"Directes"},null,null,null,{"$f":"$E$67","v":""},null,null,null,{"$f":"$K$67","v":"Directes"}]
[null,null,null,null,null,null,null,null,null,null,null,null,null,null,null,"Tableau des émissions du projet",null,null,null,"Tableau des émissions de référence",null,null,null,"Tableau des émissions du projet",null,null,null,"Tableau des émissions de référence",null,null,null,"Tableau des émissions du projet",null,null,null,"Tableau des émissions de référence",null,null,null,"Tableau des émissions du projet",null,null,null,"Tableau des émissions de référence"]
[null,"Veuillez sélectionner la composante dans la liste déroulante ci-dessous :",null,null,null,null,null,"Veuillez sélectionner la composante dans la liste déroulante ci-dessous :",null,null,null,null,null,null,null,null,"téq CO2/année",null,null,null,"téq CO2/année",null,null,null,"téq CO2/année",null,null,null,"téq CO2/année",null,null,null,"téq CO2/année",null,null,null,"téq CO2/année",null,null,{"$f":"IF($P$64=\"Direct\",P66,0)+IF($X$64=\"Direct\",X66,0)+IF($AF$64=\"Direct\",AF66,0)","v":0},"téq CO2/année",null,null,{"$f":"IF($T$64=\"Direct\",T66,0)+IF($AB$64=\"Direct\",AB66,0)+IF($AJ$64=\"Direct\",AJ66,0)","v":0},"téq CO2/année"]
[null,"NOUVELLE installation de production en bloc",null,"Type de réduction/remplacement :",{"$f":"IF(VLOOKUP(B67,Table5[[Catégorie de composante]:[Type d’émissions de GES '[Liste déroulante']]],4,FALSE)=0,\"\",VLOOKUP(B67,Table5[[Catégorie de composante]:[Type d’émissions de GES '[Liste déroulante']]],4,FALSE))","v":""},null,null,"Installation de production en bloc EXISTANTE",null,"Type de réduction/remplacement :",{"$f":"IF(VLOOKUP(H67,Table12[[Catégorie de composante]:[Type de réduction/remplacement des émissions de GES '[Liste déroulante']]],4,FALSE)=0,\"\",VLOOKUP(H67,Table12[[Catégorie de composante]:[Type de réduction/remplacement des émissions de GES '[Liste déroulante']]],4,FALSE))","v":"Directes"},null,null,null,null,null,"téq CO2/année",null,null,null,"téq CO2/année",null,null,null,"téq CO2/année",null,null,null,"téq CO2/année",null,null,null,"téq CO2/année",null,null,null,"téq CO2/année",null,null,0,"téq CO2/année",null,null,0,"téq CO2/année"]
[null,{"$f":"INDEX(Table5[Index des composantes],MATCH(B67,Table5[Catégorie de composante],0))","v":"P.1."},null,null,null,null,null,{"$f":"INDEX(Table12[Index des composantes],MATCH(H67,Table12[Catégorie de composante],0))","v":"R.1."},null,null,null,null,null,null,null,null,"téq CO2/année",null,null,null,"téq CO2/année",null,null,null,"téq CO2/année",null,null,null,"téq CO2/année",null,null,null,"téq CO2/année",null,null,null,"téq CO2/année",null,null,0,"téq CO2/année",null,null,0,"téq CO2/année"]
[null,null,null,null,null,null,null,null,null,null,null,null,null,null,null,null,"téq CO2/année",null,null,null,"téq CO2/année",null,null,null,"téq CO2/année",null,null,null,"téq CO2/année",null,null,null,"téq CO2/année",null,null,null,"téq CO2/année",null,null,0,"téq CO2/année",null,null,0,"téq CO2/année"]
[null,"Parameter","Value","Unit","Notes",null,null,"Parameter","Value","Unit","Notes",null,null,null,null,null,"téq CO2/année",null,null,null,"téq CO2/année",null,null,null,"téq CO2/année",null,null,null,"téq CO2/année",null,null,null,"téq CO2/année",null,null,null,"téq CO2/année",null,null,0,"téq CO2/année",null,null,0,"téq CO2/année"]
[null,null,null,null,null,null,null,null,null,null,null,null,null,null,null,null,"téq CO2/année",null,null,null,"téq CO2/année",null,null,null,"téq CO2/année",null,null,null,"téq CO2/année",null,null,null,"téq CO2/année",null,null,null,"téq CO2/année",null,null,0,"téq CO2/année",null,null,0,"téq CO2/année"]
[null,null,null,null,null,null,null,null,null,null,null,null,null,null,null,null,"téq CO2/année",null,null,null,"téq CO2/année",null,null,null,"téq CO2/année",null,null,null,"téq CO2/année",null,null,null,"téq CO2/année",null,null,null,"téq CO2/année",null,null,0,"téq CO2/année",null,null,0,"téq CO2/année"]
[null,null,null,null,null,null,null,null,null,null,null,null,null,null,null,null,"téq CO2/année",null,null,null,"téq CO2/année",null,null,null,"téq CO2/année",null,null,null,"téq CO2/année",null,null,null,"téq CO2/année",null,null,null,"téq CO2/année",null,null,0,"téq CO2/année",null,null,0,"téq CO2/année"]
[null,null,null,null,null,null,null,null,null,null,null,null,null,null,null,null,"téq CO2/année",null,null,null,"téq CO2/année",null,null,null,"téq CO2/année",null,null,null,"téq CO2/année",null,null,null,"téq CO2/année",null,null,null,"téq CO2/année",null,null,0,"téq CO2/année",null,null,0,"téq CO2/année"]
[null,null,null,null,null,null,null,null,null,null,null,null,null,null,null,null,"téq CO2/année",null,null,null,"téq CO2/année",null,null,null,"téq CO2/année",null,null,null,"téq CO2/année",null,null,null,"téq CO2/année",null,null,null,"téq CO2/année",null,null,0,"téq CO2/année",null,null,0,"téq CO2/année"]
[null,null,null,null,null,null,null,null,null,null,null,null,null,null,null,null,"téq CO2/année",null,null,null,"téq CO2/année",null,null,null,"téq CO2/année",null,null,null,"téq CO2/année",null,null,null,"téq CO2/année",null,null,null,"téq CO2/année",null,null,0,"téq CO2/année",null,null,0,"téq CO2/année"]
[null,"*Ajouter des paramètres au besoin",null,null,null,null,null,"*Ajouter des paramètres au besoin",null,null,null,null,null,null,null,null,"téq CO2/année",null,null,null,"téq CO2/année",null,null,null,"téq CO2/année",null,null,null,"téq CO2/année",null,null,null,"téq CO2/année",null,null,null,"téq CO2/année",null,null,0,"téq CO2/année",null,null,0,"téq CO2/année"]
[null,null,null,null,"Description du FE",null,null,null,null,null,"Description du FE",null,null,null,null,null,"téq CO2/année",null,null,null,"téq CO2/année",null,null,null,"téq CO2/année",null,null,null,"téq CO2/année",null,null,null,"téq CO2/année",null,null,null,"téq CO2/année",null,null,0,"téq CO2/année",null,null,0,"téq CO2/année"]
[null,"Facteur d’émission (FE)",null,"Veuillez indiquer l’unité ici",null,null,null,"Facteur d’émission (FE)",null,"Veuillez indiquer l’unité ici",null,null,null,null,null,null,"téq CO2/année",null,null,null,"téq CO2/année",null,null,null,"téq CO2/année",null,null,null,"téq CO2/année",null,null,null,"téq CO2/année",null,null,null,"téq CO2/année",null,null,0,"téq CO2/année",null,null,0,"téq CO2/année"]
[null,null,null,null,null,null,null,null,null,null,null,null,null,null,null,null,"téq CO2/année",null,null,null,"téq CO2/année",null,null,null,"téq CO2/année",null,null,null,"téq CO2/année",null,null,null,"téq CO2/année",null,null,null,"téq CO2/année",null,null,0,"téq CO2/année",null,null,0,"téq CO2/année"]
[null,"Émissions (annuelles)",null,"téq CO2/année",null,null,null,"Émissions (annuelles)",null,"téq CO2/année",null,null,null,null,null,null,"téq CO2/année",null,null,null,"téq CO2/année",null,null,null,"téq CO2/année",null,null,null,"téq CO2/année",null,null,null,"téq CO2/année",null,null,null,"téq CO2/année",null,null,0,"téq CO2/année",null,null,0,"téq CO2/année"]
[null,null,{"$f":"IF(OR(COUNT(AF34:AF59)<>0,COUNT(AF66:AF91)<>0),\"Effectué à partir des facteurs d'intensité moyenne du réseau, des estimations de production d'électricité variable, ou des deux. Si vous ne souhaitez pas utiliser ces données, cliquez sur le bouton pour effacer les données en bas du formulaire.\",\"\")","v":""},null,null,null,null,null,{"$f":"IF(OR(COUNT(AJ34:AJ59)<>0,COUNT(AJ66:AJ91)<>0),\"Effectué à partir des facteurs d'intensité moyenne du réseau, des estimations de production d'électricité variable, ou des deux. Si vous ne souhaitez pas utiliser ces données, cliquez sur le bouton pour effacer les données en bas du formulaire.\",\"\")","v":""},null,null,null,null,null,null,null,"téq CO2/année",null,null,null,"téq CO2/année",null,null,null,"téq CO2/année",null,null,null,"téq CO2/année",null,null,null,"téq CO2/année",null,null,null,"téq CO2/année",null,null,0,"téq CO2/année",null,null,0,"téq CO2/année"]
[null,null,null,null,null,null,null,null,null,null,null,null,null,null,null,null,"téq CO2/année",null,null,null,"téq CO2/année",null,null,null,"téq CO2/année",null,null,null,"téq CO2/année",null,null,null,"téq CO2/année",null,null,null,"téq CO2/année",null,null,0,"téq CO2/année",null,null,0,"téq CO2/année"]
[null,"DIRECTES :",null,null,null,null,null,"DIRECTES :",null,null,null,null,null,null,null,null,"téq CO2/année",null,null,null,"téq CO2/année",null,null,null,"téq CO2/année",null,null,null,"téq CO2/année",null,null,null,"téq CO2/année",null,null,null,"téq CO2/année",null,null,0,"téq CO2/année",null,null,0,"téq CO2/année"]
[null,"Total des émissions du projet (annuelles) :",{"$f":"SUMIF(E31,\"Directes\",C45)+SUMIF(E49,\"Directes\",C63)+SUMIF(E67,\"Directes\",C81)","v":0},"téq CO2/année",null,null,null,"Total des émissions de référence (annuelles) :",{"$f":"SUMIF(K31,\"Directes\",I45)+SUMIF(K49,\"Directes\",I63)+SUMIF(K67,\"Directes\",I81)","v":0},"téq CO2/année",null,null,null,null,null,null,"téq CO2/année",null,null,null,"téq CO2/année",null,null,null,"téq CO2/année",null,null,null,"téq CO2/année",null,null,null,"téq CO2/année",null,null,null,"téq CO2/année",null,null,0,"téq CO2/année",null,null,0,"téq CO2/année"]
[null,null,null,null,null,null,null,null,null,null,null,null,null,null,null,null,"téq CO2/année",null,null,null,"téq CO2/année",null,null,null,"téq CO2/année",null,null,null,"téq CO2/année",null,null,null,"téq CO2/année",null,null,null,"téq CO2/année",null,null,0,"téq CO2/année",null,null,0,"téq CO2/année"]
[null,"INDIRECTES :",null,null,null,null,null,"INDIRECTES :",null,null,null,null,null,null,null,null,"téq CO2/année",null,null,null,"téq CO2/année",null,null,null,"téq CO2/année",null,null,null,"téq CO2/année",null,null,null,"téq CO2/année",null,null,null,"téq CO2/année",null,null,0,"téq CO2/année",null,null,0,"téq CO2/année"]
[null,"Total des émissions du projet (annuelles) :",{"$f":"SUMIF(E31,\"Indirectes\",C45)+SUMIF(E49,\"Indirectes\",C63)+SUMIF(E67,\"Indirectes\",C81)","v":0},"téq CO2/année",null,null,null,"Total des émissions de référence (annuelles) :",{"$f":"SUMIF(K31,\"Indirectes\",I45)+SUMIF(K49,\"Indirectes\",I63)+SUMIF(K67,\"Indirectes\",I81)","v":0},"téq CO2/année",null,null,null,null,null,null,"téq CO2/année",null,null,null,"téq CO2/année",null,null,null,"téq CO2/année",null,null,null,"téq CO2/année",null,null,null,"téq CO2/année",null,null,null,"téq CO2/année",null,null,0,"téq CO2/année",null,null,0,"téq CO2/année"]
[null,null,null,null,null,null,null,null,null,null,null,null,null,null,null,null,"téq CO2/année",null,null,null,"téq CO2/année",null,null,null,"téq CO2/année",null,null,null,"téq CO2/année",null,null,null,"téq CO2/année",null,null,null,"téq CO2/année",null,null,0,"téq CO2/année",null,null,0,"téq CO2/année"]
[null,null,null,null,null,null,null,null,null,null,null,null,null,null,null,null,"téq CO2/année",null,null,null,"téq CO2/année",null,null,null,"téq CO2/année",null,null,null,"téq CO2/année",null,null,null,"téq CO2/année",null,null,null,"téq CO2/année",null,null,0,"téq CO2/année",null,null,0,"téq CO2/année"]
[null,null,null,null,null,null,null,null,null,null,null,null,null,null,null,null,"téq CO2/année",null,null,null,"téq CO2/année",null,null,null,"téq CO2/année",null,null,null,"téq CO2/année",null,null,null,"téq CO2/année",null,null,null,"téq CO2/année",null,null,0,"téq CO2/année",null,null,0,"téq CO2/année"]

{"sheet":"6. Résumé","index":6,"n_rows":65,"n_cols":9,"rows_kept":65,"cut":false,"hidden":false,"merged":[[16,1,16,2],[17,1,17,2],[6,5,6,7],[6,1,6,3],[33,3,33,4],[23,3,23,4],[24,3,24,4],[25,3,25,4],[26,3,26,4],[27,3,27,4],[34,3,34,4],[35,3,35,4],[36,3,36,4],[37,3,37,4],[28,3,28,4],[29,3,29,4],[30,3,30,4],[31,3,31,4],[32,3,32,4],[38,3,38,4],[39,3,39,4],[40,3,40,4],[41,3,41,4],[42,3,42,4],[50,3,50,4],[51,3,51,4],[52,3,52,4],[43,3,43,4],[44,3,44,4],[45,3,45,4],[46,3,46,4],[47,3,47,4],[63,3,63,4],[64,3,64,4],[3,1,4,8],[20,1,20,8],[58,3,58,4],[59,3,59,4],[60,3,60,4],[61,3,61,4],[62,3,62,4],[53,3,53,4],[54,3,54,4],[55,3,55,4],[56,3,56,4],[57,3,57,4],[48,3,48,4],[49,3,49,4]]}
[]
[null,"Résumé"]
[]
[null,"Bilan GES"]
[]
[]
[null,"Directes",null,null,null,"Indirectes"]
[]
[null,"Total des émissions du projet \n(annuelles) :",{"$f":"IF('1b. Informations de base'!F65=0,'5. Calculs'!C85,'1b. Informations de base'!F65)","v":0},"téq CO2/année",null,"Total des émissions du projet (annuelles) :",{"$f":"'5. Calculs'!C88","v":0},"téq CO2/année"]
[null,"Total des émissions de référence (annuelles) :",{"$f":"IF('1b. Informations de base'!G65=0,'5. Calculs'!I85,'1b. Informations de base'!G65)","v":0},"téq CO2/année",null,"Total des émissions de référence (annuelles) :",{"$f":"'5. Calculs'!I88","v":0},"téq CO2/année"]
[]
[null,"Émissions nettes (annuelles) \n[DIRECTES] :",{"$f":"C10-C9","v":0},"téq CO2/année",null,"Émissions nettes (annuelles) [INDIRECTES] :",{"$f":"G10-G9","v":0},"téq CO2/année"]
[null,null,{"$f":"IF(OR(SUM('5. Calculs'!AN34:AN59)<>0,SUM('5. Calculs'!AR34:AR59)<>0,SUM('5. Calculs'!AN66:AN91)<>0,SUM('5. Calculs'!AR66:AR91)<>0),\"*Baseline emissions and/or Project emissions vary from year to year. Please consult summary table below.\",\"\")","v":""}]
[null,"Pourcentage annuel moyen de réduction :",{"$f":"(C12+G12)/(C10+G10)","v":{"$error":"#DIV/0!"}}]
[null,"Quantification des réductions/remplacements futurs des émissions de GES [DIRECTES]"]
[]
[null,"Année civile au cours de laquelle le projet est mis en service et réalise dans les faits des réductions ou des remplacements d’émissions :"]
[null,"Durée de vie de la technologie, du produit ou du service financé (années) :"]
[]
[null,"Description de la variabilité :"]
[null,"Le cas échéant, veuillez décrire tout changement attendu dans le volume prévu des réductions ou des remplacements des émissions de gaz à effet de serre au fil du temps et la raison de cette variabilité."]
[]
[]
[null,"Année","Émissions de référence (téq CO2/année)","Variation des émissions de référence (%)",null,"Émissions du projet (téq CO2/année)","Variation des émissions du projet (%)","Total annuel des réductions/remplacements des émissions (téq CO2/année)","Réductions/remplacements cumulatifs des émissions (téq CO2)"]
[null,{"$f":"D17","v":0},{"$f":"IF(B25<>\"\",IF('5. Calculs'!AR66=0,IF('5. Calculs'!AR34=0,C10,'5. Calculs'!AR34),'5. Calculs'!AR66),0)","v":0},0,null,{"$f":"IF(B25<>\"\",IF('5. Calculs'!AN66=0,IF('5. Calculs'!AN34=0,C9,'5. Calculs'!AN34),'5. Calculs'!AN66),0)","v":0},0,{"$f":"C25-F25","v":0},{"$f":"H25","v":0}]
[null,{"$f":"IFERROR(IF((B25+1)>($D$17+$D$18),\"\",(B25+1)),\"\")","v":""},{"$f":"IF(B26<>\"\",IF(B26>2050,(C25+(D26*C25)),IF('5. Calculs'!AR67=0,IF('5. Calculs'!AR35=0,(C25+(D26*C25)),'5. Calculs'!AR35),'5. Calculs'!AR67)),0)","v":0},null,null,{"$f":"IF(B26<>\"\",IF(B26>2050,(F25+(G26*F25)),IF('5. Calculs'!AN67=0,IF('5. Calculs'!AN35=0,(F25+(G26*F25)),'5. Calculs'!AN35),'5. Calculs'!AN67)),0)","v":0},null,{"$f":"C26-F26","v":0},{"$f":"I25+H26","v":0}]
[null,{"$f":"IFERROR(IF((B26+1)>($D$17+$D$18),\"\",(B26+1)),\"\")","v":""},{"$f":"IF(B27<>\"\",IF(B27>2050,(C26+(D27*C26)),IF('5. Calculs'!AR68=0,IF('5. Calculs'!AR36=0,(C26+(D27*C26)),'5. Calculs'!AR36),'5. Calculs'!AR68)),0)","v":0},null,null,{"$f":"IF(B27<>\"\",IF(B27>2050,(F26+(G27*F26)),IF('5. Calculs'!AN68=0,IF('5. Calculs'!AN36=0,(F26+(G27*F26)),'5. Calculs'!AN36),'5. Calculs'!AN68)),0)","v":0},null,{"$f":"C27-F27","v":0},{"$f":"I26+H27","v":0}]
[null,"",{"$f":"IF(B28<>\"\",IF(B28>2050,(C27+(D28*C27)),IF('5. Calculs'!AR69=0,IF('5. Calculs'!AR37=0,(C27+(D28*C27)),'5. Calculs'!AR37),'5. Calculs'!AR69)),0)","v":0},null,null,{"$f":"IF(B28<>\"\",IF(B28>2050,(F27+(G28*F27)),IF('5. Calculs'!AN69=0,IF('5. Calculs'!AN37=0,(F27+(G28*F27)),'5. Calculs'!AN37),'5. Calculs'!AN69)),0)","v":0},null,0,0]
[null,"",{"$f":"IF(B29<>\"\",IF(B29>2050,(C28+(D29*C28)),IF('5. Calculs'!AR70=0,IF('5. Calculs'!AR38=0,(C28+(D29*C28)),'5. Calculs'!AR38),'5. Calculs'!AR70)),0)","v":0},null,null,{"$f":"IF(B29<>\"\",IF(B29>2050,(F28+(G29*F28)),IF('5. Calculs'!AN70=0,IF('5. Calculs'!AN38=0,(F28+(G29*F28)),'5. Calculs'!AN38),'5. Calculs'!AN70)),0)","v":0},null,0,0]
[null,"",{"$f":"IF(B30<>\"\",IF(B30>2050,(C29+(D30*C29)),IF('5. Calculs'!AR71=0,IF('5. Calculs'!AR39=0,(C29+(D30*C29)),'5. Calculs'!AR39),'5. Calculs'!AR71)),0)","v":0},null,null,{"$f":"IF(B30<>\"\",IF(B30>2050,(F29+(G30*F29)),IF('5. Calculs'!AN71=0,IF('5. Calculs'!AN39=0,(F29+(G30*F29)),'5. Calculs'!AN39),'5. Calculs'!AN71)),0)","v":0},null,0,0]
[null,"",{"$f":"IF(B31<>\"\",IF(B31>2050,(C30+(D31*C30)),IF('5. Calculs'!AR72=0,IF('5. Calculs'!AR40=0,(C30+(D31*C30)),'5. Calculs'!AR40),'5. Calculs'!AR72)),0)","v":0},null,null,{"$f":"IF(B31<>\"\",IF(B31>2050,(F30+(G31*F30)),IF('5. Calculs'!AN72=0,IF('5. Calculs'!AN40=0,(F30+(G31*F30)),'5. Calculs'!AN40),'5. Calculs'!AN72)),0)","v":0},null,0,0]
[null,"",{"$f":"IF(B32<>\"\",IF(B32>2050,(C31+(D32*C31)),IF('5. Calculs'!AR73=0,IF('5. Calculs'!AR41=0,(C31+(D32*C31)),'5. Calculs'!AR41),'5. Calculs'!AR73)),0)","v":0},null,null,{"$f":"IF(B32<>\"\",IF(B32>2050,(F31+(G32*F31)),IF('5. Calculs'!AN73=0,IF('5. Calculs'!AN41=0,(F31+(G32*F31)),'5. Calculs'!AN41),'5. Calculs'!AN73)),0)","v":0},null,0,0]
[null,"",{"$f":"IF(B33<>\"\",IF(B33>2050,(C32+(D33*C32)),IF('5. Calculs'!AR74=0,IF('5. Calculs'!AR42=0,(C32+(D33*C32)),'5. Calculs'!AR42),'5. Calculs'!AR74)),0)","v":0},null,null,{"$f":"IF(B33<>\"\",IF(B33>2050,(F32+(G33*F32)),IF('5. Calculs'!AN74=0,IF('5. Calculs'!AN42=0,(F32+(G33*F32)),'5. Calculs'!AN42),'5. Calculs'!AN74)),0)","v":0},null,0,0]
[null,"",{"$f":"IF(B34<>\"\",IF(B34>2050,(C33+(D34*C33)),IF('5. Calculs'!AR75=0,IF('5. Calculs'!AR43=0,(C33+(D34*C33)),'5. Calculs'!AR43),'5. Calculs'!AR75)),0)","v":0},null,null,{"$f":"IF(B34<>\"\",IF(B34>2050,(F33+(G34*F33)),IF('5. Calculs'!AN75=0,IF('5. Calculs'!AN43=0,(F33+(G34*F33)),'5. Calculs'!AN43),'5. Calculs'!AN75)),0)","v":0},null,0,0]
[null,"",{"$f":"IF(B35<>\"\",IF(B35>2050,(C34+(D35*C34)),IF('5. Calculs'!AR76=0,IF('5. Calculs'!AR44=0,(C34+(D35*C34)),'5. Calculs'!AR44),'5. Calculs'!AR76)),0)","v":0},null,null,{"$f":"IF(B35<>\"\",IF(B35>2050,(F34+(G35*F34)),IF('5. Calculs'!AN76=0,IF('5. Calculs'!AN44=0,(F34+(G35*F34)),'5. Calculs'!AN44),'5. Calculs'!AN76)),0)","v":0},null,0,0]
[null,"",{"$f":"IF(B36<>\"\",IF(B36>2050,(C35+(D36*C35)),IF('5. Calculs'!AR77=0,IF('5. Calculs'!AR45=0,(C35+(D36*C35)),'5. Calculs'!AR45),'5. Calculs'!AR77)),0)","v":0},null,null,{"$f":"IF(B36<>\"\",IF(B36>2050,(F35+(G36*F35)),IF('5. Calculs'!AN77=0,IF('5. Calculs'!AN45=0,(F35+(G36*F35)),'5. Calculs'!AN45),'5. Calculs'!AN77)),0)","v":0},null,0,0]
[null,"",{"$f":"IF(B37<>\"\",IF(B37>2050,(C36+(D37*C36)),IF('5. Calculs'!AR78=0,IF('5. Calculs'!AR46=0,(C36+(D37*C36)),'5. Calculs'!AR46),'5. Calculs'!AR78)),0)","v":0},null,null,{"$f":"IF(B37<>\"\",IF(B37>2050,(F36+(G37*F36)),IF('5. Calculs'!AN78=0,IF('5. Calculs'!AN46=0,(F36+(G37*F36)),'5. Calculs'!AN46),'5. Calculs'!AN78)),0)","v":0},null,0,0]
[null,"",{"$f":"IF(B38<>\"\",IF(B38>2050,(C37+(D38*C37)),IF('5. Calculs'!AR79=0,IF('5. Calculs'!AR47=0,(C37+(D38*C37)),'5. Calculs'!AR47),'5. Calculs'!AR79)),0)","v":0},null,null,{"$f":"IF(B38<>\"\",IF(B38>2050,(F37+(G38*F37)),IF('5. Calculs'!AN79=0,IF('5. Calculs'!AN47=0,(F37+(G38*F37)),'5. Calculs'!AN47),'5. Calculs'!AN79)),0)","v":0},null,0,0]
[null,"",{"$f":"IF(B39<>\"\",IF(B39>2050,(C38+(D39*C38)),IF('5. Calculs'!AR80=0,IF('5. Calculs'!AR48=0,(C38+(D39*C38)),'5. Calculs'!AR48),'5. Calculs'!AR80)),0)","v":0},null,null,{"$f":"IF(B39<>\"\",IF(B39>2050,(F38+(G39*F38)),IF('5. Calculs'!AN80=0,IF('5. Calculs'!AN48=0,(F38+(G39*F38)),'5. Calculs'!AN48),'5. Calculs'!AN80)),0)","v":0},null,0,0]
[null,"",{"$f":"IF(B40<>\"\",IF(B40>2050,(C39+(D40*C39)),IF('5. Calculs'!AR81=0,IF('5. Calculs'!AR49=0,(C39+(D40*C39)),'5. Calculs'!AR49),'5. Calculs'!AR81)),0)","v":0},null,null,{"$f":"IF(B40<>\"\",IF(B40>2050,(F39+(G40*F39)),IF('5. Calculs'!AN81=0,IF('5. Calculs'!AN49=0,(F39+(G40*F39)),'5. Calculs'!AN49),'5. Calculs'!AN81)),0)","v":0},null,0,0]
[null,"",{"$f":"IF(B41<>\"\",IF(B41>2050,(C40+(D41*C40)),IF('5. Calculs'!AR82=0,IF('5. Calculs'!AR50=0,(C40+(D41*C40)),'5. Calculs'!AR50),'5. Calculs'!AR82)),0)","v":0},null,null,{"$f":"IF(B41<>\"\",IF(B41>2050,(F40+(G41*F40)),IF('5. Calculs'!AN82=0,IF('5. Calculs'!AN50=0,(F40+(G41*F40)),'5. Calculs'!AN50),'5. Calculs'!AN82)),0)","v":0},null,0,0]
[null,"",{"$f":"IF(B42<>\"\",IF(B42>2050,(C41+(D42*C41)),IF('5. Calculs'!AR83=0,IF('5. Calculs'!AR51=0,(C41+(D42*C41)),'5. Calculs'!AR51),'5. Calculs'!AR83)),0)","v":0},null,null,{"$f":"IF(B42<>\"\",IF(B42>2050,(F41+(G42*F41)),IF('5. Calculs'!AN83=0,IF('5. Calculs'!AN51=0,(F41+(G42*F41)),'5. Calculs'!AN51),'5. Calculs'!AN83)),0)","v":0},null,0,0]
[null,"",{"$f":"IF(B43<>\"\",IF(B43>2050,(C42+(D43*C42)),IF('5. Calculs'!AR84=0,IF('5. Calculs'!AR52=0,(C42+(D43*C42)),'5. Calculs'!AR52),'5. Calculs'!AR84)),0)","v":0},null,null,{"$f":"IF(B43<>\"\",IF(B43>2050,(F42+(G43*F42)),IF('5. Calculs'!AN84=0,IF('5. Calculs'!AN52=0,(F42+(G43*F42)),'5. Calculs'!AN52),'5. Calculs'!AN84)),0)","v":0},null,0,0]
[null,"",{"$f":"IF(B44<>\"\",IF(B44>2050,(C43+(D44*C43)),IF('5. Calculs'!AR85=0,IF('5. Calculs'!AR53=0,(C43+(D44*C43)),'5. Calculs'!AR53),'5. Calculs'!AR85)),0)","v":0},null,null,{"$f":"IF(B44<>\"\",IF(B44>2050,(F43+(G44*F43)),IF('5. Calculs'!AN85=0,IF('5. Calculs'!AN53=0,(F43+(G44*F43)),'5. Calculs'!AN53),'5. Calculs'!AN85)),0)","v":0},null,0,0]
[null,"",{"$f":"IF(B45<>\"\",IF(B45>2050,(C44+(D45*C44)),IF('5. Calculs'!AR86=0,IF('5. Calculs'!AR54=0,(C44+(D45*C44)),'5. Calculs'!AR54),'5. Calculs'!AR86)),0)","v":0},null,null,{"$f":"IF(B45<>\"\",IF(B45>2050,(F44+(G45*F44)),IF('5. Calculs'!AN86=0,IF('5. Calculs'!AN54=0,(F44+(G45*F44)),'5. Calculs'!AN54),'5. Calculs'!AN86)),0)","v":0},null,0,0]
[null,"",{"$f":"IF(B46<>\"\",IF(B46>2050,(C45+(D46*C45)),IF('5. Calculs'!AR87=0,IF('5. Calculs'!AR55=0,(C45+(D46*C45)),'5. Calculs'!AR55),'5. Calculs'!AR87)),0)","v":0},null,null,{"$f":"IF(B46<>\"\",IF(B46>2050,(F45+(G46*F45)),IF('5. Calculs'!AN87=0,IF('5. Calculs'!AN55=0,(F45+(G46*F45)),'5. Calculs'!AN55),'5. Calculs'!AN87)),0)","v":0},null,0,0]
[null,"",{"$f":"IF(B47<>\"\",IF(B47>2050,(C46+(D47*C46)),IF('5. Calculs'!AR88=0,IF('5. Calculs'!AR56=0,(C46+(D47*C46)),'5. Calculs'!AR56),'5. Calculs'!AR88)),0)","v":0},null,null,{"$f":"IF(B47<>\"\",IF(B47>2050,(F46+(G47*F46)),IF('5. Calculs'!AN88=0,IF('5. Calculs'!AN56=0,(F46+(G47*F46)),'5. Calculs'!AN56),'5. Calculs'!AN88)),0)","v":0},null,0,0]
[null,"",{"$f":"IF(B48<>\"\",IF(B48>2050,(C47+(D48*C47)),IF('5. Calculs'!AR89=0,IF('5. Calculs'!AR57=0,(C47+(D48*C47)),'5. Calculs'!AR57),'5. Calculs'!AR89)),0)","v":0},null,null,{"$f":"IF(B48<>\"\",IF(B48>2050,(F47+(G48*F47)),IF('5. Calculs'!AN89=0,IF('5. Calculs'!AN57=0,(F47+(G48*F47)),'5. Calculs'!AN57),'5. Calculs'!AN89)),0)","v":0},null,0,0]
[null,"",{"$f":"IF(B49<>\"\",IF(B49>2050,(C48+(D49*C48)),IF('5. Calculs'!AR90=0,IF('5. Calculs'!AR58=0,(C48+(D49*C48)),'5. Calculs'!AR58),'5. Calculs'!AR90)),0)","v":0},null,null,{"$f":"IF(B49<>\"\",IF(B49>2050,(F48+(G49*F48)),IF('5. Calculs'!AN90=0,IF('5. Calculs'!AN58=0,(F48+(G49*F48)),'5. Calculs'!AN58),'5. Calculs'!AN90)),0)","v":0},null,0,0]
[null,"",{"$f":"IF(B50<>\"\",IF(B50>2050,(C49+(D50*C49)),IF('5. Calculs'!AR91=0,IF('5. Calculs'!AR59=0,(C49+(D50*C49)),'5. Calculs'!AR59),'5. Calculs'!AR91)),0)","v":0},null,null,{"$f":"IF(B50<>\"\",IF(B50>2050,(F49+(G50*F49)),IF('5. Calculs'!AN91=0,IF('5. Calculs'!AN59=0,(F49+(G50*F49)),'5. Calculs'!AN59),'5. Calculs'!AN91)),0)","v":0},null,0,0]
[null,"",{"$f":"IF(B51<>\"\",IF(B51>2050,(C50+(D51*C50)),IF('5. Calculs'!AR92=0,IF('5. Calculs'!AR60=0,(C50+(D51*C50)),'5. Calculs'!AR60),'5. Calculs'!AR92)),0)","v":0},null,null,{"$f":"IF(B51<>\"\",IF(B51>2050,(F50+(G51*F50)),IF('5. Calculs'!AN92=0,IF('5. Calculs'!AN60=0,(F50+(G51*F50)),'5. Calculs'!AN60),'5. Calculs'!AN92)),0)","v":0},null,0,0]
[null,"",{"$f":"IF(B52<>\"\",IF(B52>2050,(C51+(D52*C51)),IF('5. Calculs'!AR93=0,IF('5. Calculs'!AR61=0,(C51+(D52*C51)),'5. Calculs'!AR61),'5. Calculs'!AR93)),0)","v":0},null,null,{"$f":"IF(B52<>\"\",IF(B52>2050,(F51+(G52*F51)),IF('5. Calculs'!AN93=0,IF('5. Calculs'!AN61=0,(F51+(G52*F51)),'5. Calculs'!AN61),'5. Calculs'!AN93)),0)","v":0},null,0,0]
[null,"",{"$f":"IF(B53<>\"\",IF(B53>2050,(C52+(D53*C52)),IF('5. Calculs'!AR94=0,IF('5. Calculs'!AR62=0,(C52+(D53*C52)),'5. Calculs'!AR62),'5. Calculs'!AR94)),0)","v":0},null,null,{"$f":"IF(B53<>\"\",IF(B53>2050,(F52+(G53*F52)),IF('5. Calculs'!AN94=0,IF('5. Calculs'!AN62=0,(F52+(G53*F52)),'5. Calculs'!AN62),'5. Calculs'!AN94)),0)","v":0},null,0,0]
[null,"",{"$f":"IF(B54<>\"\",IF(B54>2050,(C53+(D54*C53)),IF('5. Calculs'!AR95=0,IF('5. Calculs'!AR63=0,(C53+(D54*C53)),'5. Calculs'!AR63),'5. Calculs'!AR95)),0)","v":0},null,null,{"$f":"IF(B54<>\"\",IF(B54>2050,(F53+(G54*F53)),IF('5. Calculs'!AN95=0,IF('5. Calculs'!AN63=0,(F53+(G54*F53)),'5. Calculs'!AN63),'5. Calculs'!AN95)),0)","v":0},null,0,0]
[null,"",{"$f":"IF(B55<>\"\",IF(B55>2050,(C54+(D55*C54)),IF('5. Calculs'!AR96=0,IF('5. Calculs'!AR64=0,(C54+(D55*C54)),'5. Calculs'!AR64),'5. Calculs'!AR96)),0)","v":0},null,null,{"$f":"IF(B55<>\"\",IF(B55>2050,(F54+(G55*F54)),IF('5. Calculs'!AN96=0,IF('5. Calculs'!AN64=0,(F54+(G55*F54)),'5. Calculs'!AN64),'5. Calculs'!AN96)),0)","v":0},null,0,0]
[null,"",{"$f":"IF(B56<>\"\",IF(B56>2050,(C55+(D56*C55)),IF('5. Calculs'!AR97=0,IF('5. Calculs'!AR65=0,(C55+(D56*C55)),'5. Calculs'!AR65),'5. Calculs'!AR97)),0)","v":0},null,null,{"$f":"IF(B56<>\"\",IF(B56>2050,(F55+(G56*F55)),IF('5. Calculs'!AN97=0,IF('5. Calculs'!AN65=0,(F55+(G56*F55)),'5. Calculs'!AN65),'5. Calculs'!AN97)),0)","v":0},null,0,0]
[null,"",{"$f":"IF(B57<>\"\",IF(B57>2050,(C56+(D57*C56)),IF('5. Calculs'!AR98=0,IF('5. Calculs'!AR66=0,(C56+(D57*C56)),'5. Calculs'!AR66),'5. Calculs'!AR98)),0)","v":0},null,null,{"$f":"IF(B57<>\"\",IF(B57>2050,(F56+(G57*F56)),IF('5. Calculs'!AN98=0,IF('5. Calculs'!AN66=0,(F56+(G57*F56)),'5. Calculs'!AN66),'5. Calculs'!AN98)),0)","v":0},null,0,0]
[null,"",{"$f":"IF(B58<>\"\",IF(B58>2050,(C57+(D58*C57)),IF('5. Calculs'!AR99=0,IF('5. Calculs'!AR67=0,(C57+(D58*C57)),'5. Calculs'!AR67),'5. Calculs'!AR99)),0)","v":0},null,null,{"$f":"IF(B58<>\"\",IF(B58>2050,(F57+(G58*F57)),IF('5. Calculs'!AN99=0,IF('5. Calculs'!AN67=0,(F57+(G58*F57)),'5. Calculs'!AN67),'5. Calculs'!AN99)),0)","v":0},null,0,0]
[null,"",{"$f":"IF(B59<>\"\",IF(B59>2050,(C58+(D59*C58)),IF('5. Calculs'!AR100=0,IF('5. Calculs'!AR68=0,(C58+(D59*C58)),'5. Calculs'!AR68),'5. Calculs'!AR100)),0)","v":0},null,null,{"$f":"IF(B59<>\"\",IF(B59>2050,(F58+(G59*F58)),IF('5. Calculs'!AN100=0,IF('5. Calculs'!AN68=0,(F58+(G59*F58)),'5. Calculs'!AN68),'5. Calculs'!AN100)),0)","v":0},null,0,0]
[null,"",{"$f":"IF(B60<>\"\",IF(B60>2050,(C59+(D60*C59)),IF('5. Calculs'!AR101=0,IF('5. Calculs'!AR69=0,(C59+(D60*C59)),'5. Calculs'!AR69),'5. Calculs'!AR101)),0)","v":0},null,null,{"$f":"IF(B60<>\"\",IF(B60>2050,(F59+(G60*F59)),IF('5. Calculs'!AN101=0,IF('5. Calculs'!AN69=0,(F59+(G60*F59)),'5. Calculs'!AN69),'5. Calculs'!AN101)),0)","v":0},null,0,0]
[null,"",{"$f":"IF(B61<>\"\",IF(B61>2050,(C60+(D61*C60)),IF('5. Calculs'!AR102=0,IF('5. Calculs'!AR70=0,(C60+(D61*C60)),'5. Calculs'!AR70),'5. Calculs'!AR102)),0)","v":0},null,null,{"$f":"IF(B61<>\"\",IF(B61>2050,(F60+(G61*F60)),IF('5. Calculs'!AN102=0,IF('5. Calculs'!AN70=0,(F60+(G61*F60)),'5. Calculs'!AN70),'5. Calculs'!AN102)),0)","v":0},null,0,0]
[null,"",{"$f":"IF(B62<>\"\",IF(B62>2050,(C61+(D62*C61)),IF('5. Calculs'!AR103=0,IF('5. Calculs'!AR71=0,(C61+(D62*C61)),'5. Calculs'!AR71),'5. Calculs'!AR103)),0)","v":0},null,null,{"$f":"IF(B62<>\"\",IF(B62>2050,(F61+(G62*F61)),IF('5. Calculs'!AN103=0,IF('5. Calculs'!AN71=0,(F61+(G62*F61)),'5. Calculs'!AN71),'5. Calculs'!AN103)),0)","v":0},null,0,0]
[null,"",{"$f":"IF(B63<>\"\",IF(B63>2050,(C62+(D63*C62)),IF('5. Calculs'!AR104=0,IF('5. Calculs'!AR72=0,(C62+(D63*C62)),'5. Calculs'!AR72),'5. Calculs'!AR104)),0)","v":0},null,null,{"$f":"IF(B63<>\"\",IF(B63>2050,(F62+(G63*F62)),IF('5. Calculs'!AN104=0,IF('5. Calculs'!AN72=0,(F62+(G63*F62)),'5. Calculs'!AN72),'5. Calculs'!AN104)),0)","v":0},null,0,0]
[null,"",{"$f":"IF(B64<>\"\",IF(B64>2050,(C63+(D64*C63)),IF('5. Calculs'!AR105=0,IF('5. Calculs'!AR73=0,(C63+(D64*C63)),'5. Calculs'!AR73),'5. Calculs'!AR105)),0)","v":0},null,null,{"$f":"IF(B64<>\"\",IF(B64>2050,(F63+(G64*F63)),IF('5. Calculs'!AN105=0,IF('5. Calculs'!AN73=0,(F63+(G64*F63)),'5. Calculs'!AN73),'5. Calculs'!AN105)),0)","v":0},null,0,0]
[null,"",{"$f":"IF(B65<>\"\",IF(B65>2050,(C64+(D65*C64)),IF('5. Calculs'!AR106=0,IF('5. Calculs'!AR74=0,(C64+(D65*C64)),'5. Calculs'!AR74),'5. Calculs'!AR106)),0)","v":0},null,null,{"$f":"IF(B65<>\"\",IF(B65>2050,(F64+(G65*F64)),IF('5. Calculs'!AN106=0,IF('5. Calculs'!AN74=0,(F64+(G65*F64)),'5. Calculs'!AN74),'5. Calculs'!AN106)),0)","v":0},null,0,0]

{"sheet":"Automation Reference","index":7,"n_rows":6,"n_cols":8,"rows_kept":6,"cut":false,"hidden":true,"merged":[]}
[]
[null,"Characterization Dropdown",null,"Type of GHG Reduction",null,"Count of 'Not within project scope' - Project Components",null,"Count of 'Not within project scope' - Baseline Components"]
[null,"Composante émettrice",null,"Directes",null,{"$f":"COUNTIF(Table5[Caractérisation '[Liste déroulante']],\"Not within project scope\")","v":0},null,{"$f":"COUNTIF(Table12[Caractérisation '[Liste déroulante']],\"Not within project scope\")","v":0}]
[null,"Composante non émettrice",null,"Indirectes"]
[null,"Ne relève pas de la portée du projet",null,null,null,"Count of project components",null,"Count of baseline components"]
[null,null,null,null,null,{"$f":"COUNTIF(Table5[Caractérisation '[Liste déroulante']],\"Emitting component\")+COUNTIF(Table5[Caractérisation '[Liste déroulante']],\"Non-emitting component\")","v":0},null,{"$f":"COUNTIF(Table12[Caractérisation '[Liste déroulante']],\"Emitting component\")+COUNTIF(Table12[Caractérisation '[Liste déroulante']],\"Non-emitting component\")","v":0}]